Department Family,Entity,Date,Expense Type,Expense Area,Supplier,Transaction Number,AP Amount,Description,Supplier Postcode
Department of Health,NHS Sheffield CCG,31/01/2021,C&M-PMS Contract Value,PRC DELEGATED CO-COMMISSIONING,ABBEY LANE SURGERY,35238573,"24,265.20",BABALP,S8 0BJ
Department of Health,NHS Sheffield CCG,31/01/2021,C&M-PMS PCN DES Participation,PRC DELEGATED CO-COMMISSIONING,ABBEY LANE SURGERY,35238573,900.11,PARTIP,S8 0BJ
Department of Health,NHS Sheffield CCG,31/01/2021,C&M-PMS Prem Notional Rent,PRC DELEGATED CO-COMMISSIONING,ABBEY LANE SURGERY,35238573,"2,166.67",NRENT,S8 0BJ
Department of Health,NHS Sheffield CCG,31/01/2021,C&M-PMS Prem Rates,PRC DELEGATED CO-COMMISSIONING,ABBEY LANE SURGERY,35238573,773.00,RANDRP,S8 0BJ
Department of Health,NHS Sheffield CCG,31/01/2021,C&M-PMS QOF Aspiration,PRC DELEGATED CO-COMMISSIONING,ABBEY LANE SURGERY,35238573,"2,440.19",QUASPP,S8 0BJ
Department of Health,NHS Sheffield CCG,31/01/2021,Cont Care-Physical Disab (65+),CHC ADULT FULLY FUNDED,ABBEYCARE NURSING,35280646,"56,420.62",,S35 9YY
Department of Health,NHS Sheffield CCG,31/01/2021,Hcare Srv Rec Fdtn Trust-Contract Baseline,ACUTE COMMISSIONING,BARNSLEY HOSPITAL NHS FOUNDATION TRUST,35284546,"131,016.71",,S75 2EP
Department of Health,NHS Sheffield CCG,31/01/2021,C&M-PMS Contract Value,PRC DELEGATED CO-COMMISSIONING,BARNSLEY ROAD SURGERY,35238575,"21,073.10",BABALP,S5 0QJ
Department of Health,NHS Sheffield CCG,31/01/2021,C&M-PMS Funding Differential Review,PRC DELEGATED CO-COMMISSIONING,BARNSLEY ROAD SURGERY,35238575,"1,012.88",ZFUNFP,S5 0QJ
Department of Health,NHS Sheffield CCG,31/01/2021,C&M-PMS PCN DES Participation,PRC DELEGATED CO-COMMISSIONING,BARNSLEY ROAD SURGERY,35238575,788.19,PARTIP,S5 0QJ
Department of Health,NHS Sheffield CCG,31/01/2021,C&M-PMS PCO Other,PRC DELEGATED CO-COMMISSIONING,BARNSLEY ROAD SURGERY,35238575,195.00,CQCRP,S5 0QJ
Department of Health,NHS Sheffield CCG,31/01/2021,C&M-PMS Prem Notional Rent,PRC DELEGATED CO-COMMISSIONING,BARNSLEY ROAD SURGERY,35238575,"2,652.17",NRENT,S5 0QJ
Department of Health,NHS Sheffield CCG,31/01/2021,C&M-PMS QOF Aspiration,PRC DELEGATED CO-COMMISSIONING,BARNSLEY ROAD SURGERY,35238575,"2,289.13",QUASPP,S5 0QJ
Department of Health,NHS Sheffield CCG,31/01/2021,C&M-GMS Global Sum,PRC DELEGATED CO-COMMISSIONING,BASLOW ROAD & SHOREHAM STREET SURGERIES,35423401,"98,933.25",GSUMG,S17 4DR
Department of Health,NHS Sheffield CCG,31/01/2021,C&M-GMS PCN DES Participation,PRC DELEGATED CO-COMMISSIONING,BASLOW ROAD & SHOREHAM STREET SURGERIES,35423401,"3,972.12",PARTIG,S17 4DR
Department of Health,NHS Sheffield CCG,31/01/2021,C&M-GMS Prem Notional Rent,PRC DELEGATED CO-COMMISSIONING,BASLOW ROAD & SHOREHAM STREET SURGERIES,35423401,"8,222.71",NRENT,S17 4DR
Department of Health,NHS Sheffield CCG,31/01/2021,C&M-GMS Prem Rates,PRC DELEGATED CO-COMMISSIONING,BASLOW ROAD & SHOREHAM STREET SURGERIES,35423401,"1,954.00",RANDR,S17 4DR
Department of Health,NHS Sheffield CCG,31/01/2021,C&M-GMS QOF Aspiration,PRC DELEGATED CO-COMMISSIONING,BASLOW ROAD & SHOREHAM STREET SURGERIES,35423401,"10,305.33",QUASPG,S17 4DR
Department of Health,NHS Sheffield CCG,31/01/2021,Cont Care-Physical Disab (65+),CHC ADULT FULLY FUNDED,BC SHEFFIELD LTD,35158887,"41,696.43",https://nww.einvoice-prod.sbs.nhs.uk:8179/invoicepdf/2535465a-d8e5-5706-82cc-dd26b0199ec0,S9 2TJ
Department of Health,NHS Sheffield CCG,31/01/2021,C&M-PMS Contract Value,PRC DELEGATED CO-COMMISSIONING,BIRLEY HEALTH CENTRE,35238577,"65,453.56",BABALP,S12 3BP
Department of Health,NHS Sheffield CCG,31/01/2021,C&M-PMS Out of Hours Opt Outs,PRC DELEGATED CO-COMMISSIONING,BIRLEY HEALTH CENTRE,35238577,11.70,APMOOH,S12 3BP
Department of Health,NHS Sheffield CCG,31/01/2021,C&M-PMS PCN DES Participation,PRC DELEGATED CO-COMMISSIONING,BIRLEY HEALTH CENTRE,35238577,"2,447.94",PARTIP,S12 3BP
Department of Health,NHS Sheffield CCG,31/01/2021,C&M-PMS PCO Other,PRC DELEGATED CO-COMMISSIONING,BIRLEY HEALTH CENTRE,35238577,539.80,CQCRP,S12 3BP
Department of Health,NHS Sheffield CCG,31/01/2021,C&M-PMS Prem Notional Rent,PRC DELEGATED CO-COMMISSIONING,BIRLEY HEALTH CENTRE,35238577,"7,600.58",NRENT,S12 3BP
Department of Health,NHS Sheffield CCG,31/01/2021,C&M-PMS Prem Rates,PRC DELEGATED CO-COMMISSIONING,BIRLEY HEALTH CENTRE,35238577,"1,697.00",RANDRP,S12 3BP
Department of Health,NHS Sheffield CCG,31/01/2021,C&M-PMS Prem Water Rates,PRC DELEGATED CO-COMMISSIONING,BIRLEY HEALTH CENTRE,35238577,362.10,RAMWP,S12 3BP
Department of Health,NHS Sheffield CCG,31/01/2021,C&M-PMS QOF Aspiration,PRC DELEGATED CO-COMMISSIONING,BIRLEY HEALTH CENTRE,35238577,"6,800.34",QUASPP,S12 3BP
Department of Health,NHS Sheffield CCG,31/01/2021,Cont Care-Funded Nursing Care Allow,FUNDED NURSING CARE,BONDCARE,35245215,"28,901.61",FNC SCHEDULE JANUARY 2021 - Chatsworth Grange Nursing Home,NW4 4EF
Department of Health,NHS Sheffield CCG,31/01/2021,Cont Care-Physical Disab (<65),CHC ADULT FULLY FUNDED,BONDCARE,35259259,"29,992.73",CHC SCHEDULE JANUARY 2021 - Chatsworth Grange Nursing Home,NW4 4EF
Department of Health,NHS Sheffield CCG,31/01/2021,C&M-GMS Cost of Drugs -Prescribing,LOCAL ENHANCED SERVICES,BROOMHILL SURGERY,35423408,"6,244.96",DRGP,S10 5BU
Department of Health,NHS Sheffield CCG,31/01/2021,C&M-GMS Global Sum,PRC DELEGATED CO-COMMISSIONING,BROOMHILL SURGERY,35423408,"66,969.60",GSUMG,S10 5BU
Department of Health,NHS Sheffield CCG,31/01/2021,C&M-GMS PCN DES Participation,PRC DELEGATED CO-COMMISSIONING,BROOMHILL SURGERY,35423408,"2,661.46",PARTIG,S10 5BU
Department of Health,NHS Sheffield CCG,31/01/2021,C&M-GMS Prem Cost Rent,PRC DELEGATED CO-COMMISSIONING,BROOMHILL SURGERY,35423408,"2,975.42",COST,S10 5BU
Department of Health,NHS Sheffield CCG,31/01/2021,C&M-GMS Prem Notional Rent,PRC DELEGATED CO-COMMISSIONING,BROOMHILL SURGERY,35423408,"2,612.50",NRENT,S10 5BU
Department of Health,NHS Sheffield CCG,31/01/2021,C&M-GMS Prem Rates,PRC DELEGATED CO-COMMISSIONING,BROOMHILL SURGERY,35423408,"2,745.00",RANDR,S10 5BU
Department of Health,NHS Sheffield CCG,31/01/2021,C&M-GMS Prof Fees Prescribing,PRC DELEGATED CO-COMMISSIONING,BROOMHILL SURGERY,35423408,"1,235.75",DRGPPF,S10 5BU
Department of Health,NHS Sheffield CCG,31/01/2021,C&M-GMS QOF Aspiration,PRC DELEGATED CO-COMMISSIONING,BROOMHILL SURGERY,35423408,"6,610.83",QUASPG,S10 5BU
Department of Health,NHS Sheffield CCG,31/01/2021,C&M-GMS Cost of Drugs -Prescribing,LOCAL ENHANCED SERVICES,BUCHANAN ROAD SURGERY,35423404,395.74,DRGP,S5 8AL
Department of Health,NHS Sheffield CCG,31/01/2021,C&M-GMS Global Sum,PRC DELEGATED CO-COMMISSIONING,BUCHANAN ROAD SURGERY,35423404,"36,722.96",GSUMG,S5 8AL
Department of Health,NHS Sheffield CCG,31/01/2021,C&M-GMS PCN DES Participation,PRC DELEGATED CO-COMMISSIONING,BUCHANAN ROAD SURGERY,35423404,"1,470.69",PARTIG,S5 8AL
Department of Health,NHS Sheffield CCG,31/01/2021,C&M-GMS Prem Notional Rent,PRC DELEGATED CO-COMMISSIONING,BUCHANAN ROAD SURGERY,35423404,"2,595.83",NRENT,S5 8AL
Department of Health,NHS Sheffield CCG,31/01/2021,C&M-GMS Prem Rates,PRC DELEGATED CO-COMMISSIONING,BUCHANAN ROAD SURGERY,35423404,"1,283.00",RANDR,S5 8AL
Department of Health,NHS Sheffield CCG,31/01/2021,C&M-GMS Prof Fees Prescribing,PRC DELEGATED CO-COMMISSIONING,BUCHANAN ROAD SURGERY,35423404,45.37,DRGPPF,S5 8AL
Department of Health,NHS Sheffield CCG,31/01/2021,C&M-GMS QOF Aspiration,PRC DELEGATED CO-COMMISSIONING,BUCHANAN ROAD SURGERY,35423404,"4,322.18",QUASPG,S5 8AL
Department of Health,NHS Sheffield CCG,31/01/2021,C&M-PMS GP Statutory Levy,PRC DELEGATED CO-COMMISSIONING,BURNCROSS SURGERY,35238578,-525.00,STATL,S35 1RN
Department of Health,NHS Sheffield CCG,31/01/2021,C&M-PMS PCN DES Participation,PRC DELEGATED CO-COMMISSIONING,BURNCROSS SURGERY,35238578,"-2,282.33",PARTIP,S35 1RN
Department of Health,NHS Sheffield CCG,31/01/2021,C&M-PMS Prem Rates,PRC DELEGATED CO-COMMISSIONING,BURNCROSS SURGERY,35238578,"-4,533.00",RANDRP,S35 1RN
Department of Health,NHS Sheffield CCG,31/01/2021,C&M-PMS Contract Value,PRC DELEGATED CO-COMMISSIONING,BURNCROSS SURGERY,35258311,"122,804.11",BABALP,S35 1RN
Department of Health,NHS Sheffield CCG,31/01/2021,C&M-PMS Funding Differential Review,PRC DELEGATED CO-COMMISSIONING,BURNCROSS SURGERY,35258311,"5,492.64",ZFUNFP,S35 1RN
Department of Health,NHS Sheffield CCG,31/01/2021,C&M-PMS PCN DES Participation,PRC DELEGATED CO-COMMISSIONING,BURNCROSS SURGERY,35258311,"4,568.54",PARTIP,S35 1RN
Department of Health,NHS Sheffield CCG,31/01/2021,C&M-PMS PCO Locum Sickness,PRC DELEGATED CO-COMMISSIONING,BURNCROSS SURGERY,35258311,"18,528.04",SICKS,S35 1RN
Department of Health,NHS Sheffield CCG,31/01/2021,C&M-PMS Prem Notional Rent,PRC DELEGATED CO-COMMISSIONING,BURNCROSS SURGERY,35258311,"14,919.67",NRENT,S35 1RN
Department of Health,NHS Sheffield CCG,31/01/2021,C&M-PMS Prem Rates,PRC DELEGATED CO-COMMISSIONING,BURNCROSS SURGERY,35258311,"7,993.89",RANDRP,S35 1RN
Department of Health,NHS Sheffield CCG,31/01/2021,C&M-PMS QOF Aspiration,PRC DELEGATED CO-COMMISSIONING,BURNCROSS SURGERY,35258311,"15,253.36",QUASPP,S35 1RN
Department of Health,NHS Sheffield CCG,31/01/2021,C&M-PMS Contract Value,PRC DELEGATED CO-COMMISSIONING,BURNGREAVE SURGERY,35238580,"58,313.57",BABALP,S3 9DA
Department of Health,NHS Sheffield CCG,31/01/2021,C&M-PMS Out of Hours Opt Outs,PRC DELEGATED CO-COMMISSIONING,BURNGREAVE SURGERY,35238580,32.73,APMOOH,S3 9DA
Department of Health,NHS Sheffield CCG,31/01/2021,C&M-PMS PCN DES Participation,PRC DELEGATED CO-COMMISSIONING,BURNGREAVE SURGERY,35238580,"2,182.17",PARTIP,S3 9DA
Department of Health,NHS Sheffield CCG,31/01/2021,C&M-PMS Prem Notional Rent,PRC DELEGATED CO-COMMISSIONING,BURNGREAVE SURGERY,35238580,"6,622.92",NRENT,S3 9DA
Department of Health,NHS Sheffield CCG,31/01/2021,C&M-PMS Prem Rates,PRC DELEGATED CO-COMMISSIONING,BURNGREAVE SURGERY,35238580,"2,297.00",RANDRP,S3 9DA
Department of Health,NHS Sheffield CCG,31/01/2021,C&M-PMS QOF Aspiration,PRC DELEGATED CO-COMMISSIONING,BURNGREAVE SURGERY,35238580,"5,108.72",QUASPP,S3 9DA
Department of Health,NHS Sheffield CCG,31/01/2021,C&M-GMS GP Statutory Levy,PRC DELEGATED CO-COMMISSIONING,CARTERKNOWLE & DORE MEDICAL PRACTICE,35423413,-443.63,STATL,S7 2DW
Department of Health,NHS Sheffield CCG,31/01/2021,C&M-GMS PCN DES Participation,PRC DELEGATED CO-COMMISSIONING,CARTERKNOWLE & DORE MEDICAL PRACTICE,35423413,"-1,740.63",PARTIG,S7 2DW
Department of Health,NHS Sheffield CCG,31/01/2021,C&M-GMS Cost of Drugs -Prescribing,LOCAL ENHANCED SERVICES,CARTERKNOWLE & DORE MEDICAL PRACTICE,35423414,"4,596.29",DRGP,S7 2DW
Department of Health,NHS Sheffield CCG,31/01/2021,C&M-GMS Global Sum,PRC DELEGATED CO-COMMISSIONING,CARTERKNOWLE & DORE MEDICAL PRACTICE,35423414,"89,673.33",GSUMG,S7 2DW
Department of Health,NHS Sheffield CCG,31/01/2021,C&M-GMS PCN DES Participation,PRC DELEGATED CO-COMMISSIONING,CARTERKNOWLE & DORE MEDICAL PRACTICE,35423414,"3,484.23",PARTIG,S7 2DW
Department of Health,NHS Sheffield CCG,31/01/2021,C&M-GMS PCO Locum Adop/Pat/Mat,PRC DELEGATED CO-COMMISSIONING,CARTERKNOWLE & DORE MEDICAL PRACTICE,35423414,"5,943.45",LOCADG,S7 2DW
Department of Health,NHS Sheffield CCG,31/01/2021,C&M-GMS PCO Locum Sickness,PRC DELEGATED CO-COMMISSIONING,CARTERKNOWLE & DORE MEDICAL PRACTICE,35423414,"2,377.38",LOCSIG,S7 2DW
Department of Health,NHS Sheffield CCG,31/01/2021,C&M-GMS PCO Other,PRC DELEGATED CO-COMMISSIONING,CARTERKNOWLE & DORE MEDICAL PRACTICE,35423414,"7,645.00",CQCRG,S7 2DW
Department of Health,NHS Sheffield CCG,31/01/2021,C&M-GMS Prem Notional Rent,PRC DELEGATED CO-COMMISSIONING,CARTERKNOWLE & DORE MEDICAL PRACTICE,35423414,"7,855.00",NRENT,S7 2DW
Department of Health,NHS Sheffield CCG,31/01/2021,C&M-GMS Prem Rates,PRC DELEGATED CO-COMMISSIONING,CARTERKNOWLE & DORE MEDICAL PRACTICE,35423414,"20,600.56",RANDR,S7 2DW
Department of Health,NHS Sheffield CCG,31/01/2021,C&M-GMS Prof Fees Prescribing,PRC DELEGATED CO-COMMISSIONING,CARTERKNOWLE & DORE MEDICAL PRACTICE,35423414,600.54,DRGPPF,S7 2DW
Department of Health,NHS Sheffield CCG,31/01/2021,C&M-GMS QOF Aspiration,PRC DELEGATED CO-COMMISSIONING,CARTERKNOWLE & DORE MEDICAL PRACTICE,35423414,"10,268.52",QUASPG,S7 2DW
Department of Health,NHS Sheffield CCG,31/01/2021,C&M-GMS Cost of Drugs -Prescribing,LOCAL ENHANCED SERVICES,CHARNOCK HEALTH PRIMARY CARE CENTRE,35423410,"2,206.50",DRGP,S12 3GH
Department of Health,NHS Sheffield CCG,31/01/2021,C&M-GMS Global Sum,PRC DELEGATED CO-COMMISSIONING,CHARNOCK HEALTH PRIMARY CARE CENTRE,35423410,"44,694.47",GSUMG,S12 3GH
Department of Health,NHS Sheffield CCG,31/01/2021,C&M-GMS PCN DES Participation,PRC DELEGATED CO-COMMISSIONING,CHARNOCK HEALTH PRIMARY CARE CENTRE,35423410,893.45,PARTIG,S12 3GH
Department of Health,NHS Sheffield CCG,31/01/2021,C&M-GMS PCO Other,PRC DELEGATED CO-COMMISSIONING,CHARNOCK HEALTH PRIMARY CARE CENTRE,35423410,371.00,CQCRG,S12 3GH
Department of Health,NHS Sheffield CCG,31/01/2021,C&M-GMS Prem Actual Rent,PRC DELEGATED CO-COMMISSIONING,CHARNOCK HEALTH PRIMARY CARE CENTRE,35423410,"20,500.00",RENT,S12 3GH
Department of Health,NHS Sheffield CCG,31/01/2021,C&M-GMS Prem Notional Rent,PRC DELEGATED CO-COMMISSIONING,CHARNOCK HEALTH PRIMARY CARE CENTRE,35423410,340.00,NRENT,S12 3GH
Department of Health,NHS Sheffield CCG,31/01/2021,C&M-GMS Prof Fees Prescribing,PRC DELEGATED CO-COMMISSIONING,CHARNOCK HEALTH PRIMARY CARE CENTRE,35423410,443.05,DRGPPF,S12 3GH
Department of Health,NHS Sheffield CCG,31/01/2021,C&M-GMS QOF Aspiration,PRC DELEGATED CO-COMMISSIONING,CHARNOCK HEALTH PRIMARY CARE CENTRE,35423410,"4,918.11",QUASPG,S12 3GH
Department of Health,NHS Sheffield CCG,31/01/2021,Hcare Srv Rec Fdtn Trust-Contract Baseline,ACUTE COMMISSIONING,CHESTERFIELD ROYAL HOSPITAL NHS FOUNDATION TRUST,35284547,"369,177.00",,S44 5BL
Department of Health,NHS Sheffield CCG,31/01/2021,C&M-APMS Contract Value,PRC DELEGATED CO-COMMISSIONING,CLOVER CITY PRACTICE,35238649,"31,128.96",APMADD,S9 4QH
Department of Health,NHS Sheffield CCG,31/01/2021,C&M-APMS OOH Opt Outs,PRC DELEGATED CO-COMMISSIONING,CLOVER CITY PRACTICE,35238649,1.31,APMOOA,S9 4QH
Department of Health,NHS Sheffield CCG,31/01/2021,C&M-APMS PCN DES Participation,PRC DELEGATED CO-COMMISSIONING,CLOVER CITY PRACTICE,35238649,563.87,PARTIA,S9 4QH
Department of Health,NHS Sheffield CCG,31/01/2021,C&M-PMS PCN DES Participation,PRC DELEGATED CO-COMMISSIONING,CLOVER CITY PRACTICE,35238649,564.83,PARTIP,S9 4QH
Department of Health,NHS Sheffield CCG,31/01/2021,C&M-PMS QOF Aspiration,PRC DELEGATED CO-COMMISSIONING,CLOVER CITY PRACTICE,35238649,"1,589.35",QUASPP,S9 4QH
Department of Health,NHS Sheffield CCG,31/01/2021,C&M-APMS Contract Value,PRC DELEGATED CO-COMMISSIONING,CLOVER GROUP PRACTICE,35238582,"132,741.00",APMADD,S9 4QH
Department of Health,NHS Sheffield CCG,31/01/2021,C&M-APMS PCN DES Participation,PRC DELEGATED CO-COMMISSIONING,CLOVER GROUP PRACTICE,35238582,"2,478.23",PARTIA,S9 4QH
Department of Health,NHS Sheffield CCG,31/01/2021,C&M-APMS Prem Actual Rent,PRC DELEGATED CO-COMMISSIONING,CLOVER GROUP PRACTICE,35238582,"5,169.68",RENTA,S9 4QH
Department of Health,NHS Sheffield CCG,31/01/2021,C&M-APMS Prem Healthcentre Rent,PRC DELEGATED CO-COMMISSIONING,CLOVER GROUP PRACTICE,35238582,"59,788.21",HEALTA,S9 4QH
Department of Health,NHS Sheffield CCG,31/01/2021,C&M-APMS Prem Notional Rent,PRC DELEGATED CO-COMMISSIONING,CLOVER GROUP PRACTICE,35238582,"2,804.17",NRENTA,S9 4QH
Department of Health,NHS Sheffield CCG,31/01/2021,C&M-PMS Out of Hours Opt Outs,PRC DELEGATED CO-COMMISSIONING,CLOVER GROUP PRACTICE,35238582,23.51,APMOOH,S9 4QH
Department of Health,NHS Sheffield CCG,31/01/2021,C&M-PMS PCN DES Participation,PRC DELEGATED CO-COMMISSIONING,CLOVER GROUP PRACTICE,35238582,"2,482.45",PARTIP,S9 4QH
Department of Health,NHS Sheffield CCG,31/01/2021,C&M-PMS QOF Aspiration,PRC DELEGATED CO-COMMISSIONING,CLOVER GROUP PRACTICE,35238582,"11,362.38",QUASPP,S9 4QH
Department of Health,NHS Sheffield CCG,31/01/2021,C&M-APMS LES Translation Fees,LOCAL ENHANCED SERVICES,CLOVER GROUP PRACTICE,35317164,"70,750.00",MULBERRYQ3 202021,S9 4QH
Department of Health,NHS Sheffield CCG,31/01/2021,Voids and Subsidies,PRC DELEGATED CO-COMMISSIONING,COMMUNITY HEALTH PARTNERSHIPS LTD,35193634,"37,796.72",,M1 5AN
Department of Health,NHS Sheffield CCG,31/01/2021,Voids and Subsidies,RECHARGES NHS PROPERTY SERVICES LTD,COMMUNITY HEALTH PARTNERSHIPS LTD,35193634,"98,041.05",https://nww.einvoice-prod.sbs.nhs.uk:8179/invoicepdf/3f04e556-3901-5356-8402-41c356a2b044,M1 5AN
Department of Health,NHS Sheffield CCG,31/01/2021,Voids and Subsidies,PRC DELEGATED CO-COMMISSIONING,COMMUNITY HEALTH PARTNERSHIPS LTD,35469250,"37,796.72",,M1 5AN
Department of Health,NHS Sheffield CCG,31/01/2021,Voids and Subsidies,RECHARGES NHS PROPERTY SERVICES LTD,COMMUNITY HEALTH PARTNERSHIPS LTD,35469250,"98,041.05",https://nww.einvoice-prod.sbs.nhs.uk:8179/invoicepdf/b07dc488-15c7-5bdc-adc6-3bc82c9b3746,M1 5AN
Department of Health,NHS Sheffield CCG,31/01/2021,Cont Care-Funded Nursing Care Allow,FUNDED NURSING CARE,COUNTRY COURT CARE LTD,35245179,"28,244.77",FNC SCHEDULE JANUARY 2021 - Abbey Grange Nursing Home (Country Court Care),S5 6UU
Department of Health,NHS Sheffield CCG,31/01/2021,C&M-GMS Cost of Drugs -Prescribing,LOCAL ENHANCED SERVICES,CROOKES PRACTICE,35423419,"2,180.69",DRGP,S10 1GN
Department of Health,NHS Sheffield CCG,31/01/2021,C&M-GMS Global Sum,PRC DELEGATED CO-COMMISSIONING,CROOKES PRACTICE,35423419,"54,534.63",GSUMG,S10 1GN
Department of Health,NHS Sheffield CCG,31/01/2021,C&M-GMS PCN DES Participation,PRC DELEGATED CO-COMMISSIONING,CROOKES PRACTICE,35423419,"2,142.02",PARTIG,S10 1GN
Department of Health,NHS Sheffield CCG,31/01/2021,C&M-GMS PCO Other,PRC DELEGATED CO-COMMISSIONING,CROOKES PRACTICE,35423419,527.70,CQCRG,S10 1GN
Department of Health,NHS Sheffield CCG,31/01/2021,C&M-GMS Prem Notional Rent,PRC DELEGATED CO-COMMISSIONING,CROOKES PRACTICE,35423419,"3,874.67",NRENT,S10 1GN
Department of Health,NHS Sheffield CCG,31/01/2021,C&M-GMS Prem Rates,PRC DELEGATED CO-COMMISSIONING,CROOKES PRACTICE,35423419,"1,534.00",RANDR,S10 1GN
Department of Health,NHS Sheffield CCG,31/01/2021,C&M-GMS Prof Fees Prescribing,PRC DELEGATED CO-COMMISSIONING,CROOKES PRACTICE,35423419,560.50,DRGPPF,S10 1GN
Department of Health,NHS Sheffield CCG,31/01/2021,C&M-GMS QOF Aspiration,PRC DELEGATED CO-COMMISSIONING,CROOKES PRACTICE,35423419,"4,910.43",QUASPG,S10 1GN
Department of Health,NHS Sheffield CCG,31/01/2021,Voids and Subsidies,RECHARGES NHS PROPERTY SERVICES LTD,DARNALL WELL BEING,35169420,"32,150.43",,S9 4QH
Department of Health,NHS Sheffield CCG,31/01/2021,Voids and Subsidies,RECHARGES NHS PROPERTY SERVICES LTD,DARNALL WELL BEING,35207167,"32,150.43",,S9 4QH
Department of Health,NHS Sheffield CCG,31/01/2021,C&M-PMS Contract Value,PRC DELEGATED CO-COMMISSIONING,DEEPCAR MEDICAL CENTRE,35238584,"42,390.90",BABALP,S36 2RA
Department of Health,NHS Sheffield CCG,31/01/2021,C&M-PMS Out of Hours Opt Outs,PRC DELEGATED CO-COMMISSIONING,DEEPCAR MEDICAL CENTRE,35238584,25.16,APMOOH,S36 2RA
Department of Health,NHS Sheffield CCG,31/01/2021,C&M-PMS PCN DES Participation,PRC DELEGATED CO-COMMISSIONING,DEEPCAR MEDICAL CENTRE,35238584,"1,581.53",PARTIP,S36 2RA
Department of Health,NHS Sheffield CCG,31/01/2021,C&M-PMS Prem Healthcentre Rent,PRC DELEGATED CO-COMMISSIONING,DEEPCAR MEDICAL CENTRE,35238584,"30,655.23",HEALTH,S36 2RA
Department of Health,NHS Sheffield CCG,31/01/2021,C&M-PMS QOF Aspiration,PRC DELEGATED CO-COMMISSIONING,DEEPCAR MEDICAL CENTRE,35238584,"4,079.29",QUASPP,S36 2RA
Department of Health,NHS Sheffield CCG,31/01/2021,C&M-GMS Global Sum,PRC DELEGATED CO-COMMISSIONING,DEVONSHIRE GREEN MEDICAL CENTRE,35423422,"48,240.28",GSUMG,S3 7SF
Department of Health,NHS Sheffield CCG,31/01/2021,C&M-GMS PCN DES Participation,PRC DELEGATED CO-COMMISSIONING,DEVONSHIRE GREEN MEDICAL CENTRE,35423422,"1,872.01",PARTIG,S3 7SF
Department of Health,NHS Sheffield CCG,31/01/2021,C&M-GMS Prem Notional Rent,PRC DELEGATED CO-COMMISSIONING,DEVONSHIRE GREEN MEDICAL CENTRE,35423422,"5,987.50",NRENT,S3 7SF
Department of Health,NHS Sheffield CCG,31/01/2021,C&M-GMS Prem Rates,PRC DELEGATED CO-COMMISSIONING,DEVONSHIRE GREEN MEDICAL CENTRE,35423422,"1,385.00",RANDR,S3 7SF
Department of Health,NHS Sheffield CCG,31/01/2021,C&M-GMS QOF Aspiration,PRC DELEGATED CO-COMMISSIONING,DEVONSHIRE GREEN MEDICAL CENTRE,35423422,"4,846.82",QUASPG,S3 7SF
Department of Health,NHS Sheffield CCG,31/01/2021,Hcare Srv Rec Fdtn Trust-Contract Baseline,ACUTE COMMISSIONING,DONCASTER AND BASSETLAW HOSPITALS NHS FOUNDATION TRUST,35284548,"79,729.44",,WF3 1WE
Department of Health,NHS Sheffield CCG,31/01/2021,C&M-PMS Contract Value,PRC DELEGATED CO-COMMISSIONING,DOVERCOURT SURGERY,35238586,"76,152.61",BABALP,S2 5FX
Department of Health,NHS Sheffield CCG,31/01/2021,C&M-PMS Out of Hours Opt Outs,PRC DELEGATED CO-COMMISSIONING,DOVERCOURT SURGERY,35238586,9.88,APMOOH,S2 5FX
Department of Health,NHS Sheffield CCG,31/01/2021,C&M-PMS PCN DES Participation,PRC DELEGATED CO-COMMISSIONING,DOVERCOURT SURGERY,35238586,"2,813.81",PARTIP,S2 5FX
Department of Health,NHS Sheffield CCG,31/01/2021,C&M-PMS PCO Locum Sickness,PRC DELEGATED CO-COMMISSIONING,DOVERCOURT SURGERY,35238586,"21,491.38",SICKS,S2 5FX
Department of Health,NHS Sheffield CCG,31/01/2021,C&M-PMS PCO Other,PRC DELEGATED CO-COMMISSIONING,DOVERCOURT SURGERY,35238586,542.80,CQCRP,S2 5FX
Department of Health,NHS Sheffield CCG,31/01/2021,C&M-PMS Prem Actual Rent,PRC DELEGATED CO-COMMISSIONING,DOVERCOURT SURGERY,35238586,"12,400.00",RENT,S2 5FX
Department of Health,NHS Sheffield CCG,31/01/2021,C&M-PMS Prem Notional Rent,PRC DELEGATED CO-COMMISSIONING,DOVERCOURT SURGERY,35238586,"1,708.33",NRENT,S2 5FX
Department of Health,NHS Sheffield CCG,31/01/2021,C&M-PMS QOF Aspiration,PRC DELEGATED CO-COMMISSIONING,DOVERCOURT SURGERY,35238586,"7,547.35",QUASPP,S2 5FX
Department of Health,NHS Sheffield CCG,31/01/2021,C&M-PMS Contract Value,PRC DELEGATED CO-COMMISSIONING,DR MEHROTRA & PARTNER,35238588,"25,077.95",BABALP,S9 5DH
Department of Health,NHS Sheffield CCG,31/01/2021,C&M-PMS Funding Differential Review,PRC DELEGATED CO-COMMISSIONING,DR MEHROTRA & PARTNER,35238588,"1,040.94",ZFUNFP,S9 5DH
Department of Health,NHS Sheffield CCG,31/01/2021,C&M-PMS PCN DES Participation,PRC DELEGATED CO-COMMISSIONING,DR MEHROTRA & PARTNER,35238588,945.10,PARTIP,S9 5DH
Department of Health,NHS Sheffield CCG,31/01/2021,C&M-PMS PCO Other,PRC DELEGATED CO-COMMISSIONING,DR MEHROTRA & PARTNER,35238588,226.20,CQCRP,S9 5DH
Department of Health,NHS Sheffield CCG,31/01/2021,C&M-PMS Prem Notional Rent,PRC DELEGATED CO-COMMISSIONING,DR MEHROTRA & PARTNER,35238588,"5,157.29",NRENT,S9 5DH
Department of Health,NHS Sheffield CCG,31/01/2021,C&M-PMS Prem Rates,PRC DELEGATED CO-COMMISSIONING,DR MEHROTRA & PARTNER,35238588,"1,741.00",RANDRP,S9 5DH
Department of Health,NHS Sheffield CCG,31/01/2021,C&M-PMS QOF Aspiration,PRC DELEGATED CO-COMMISSIONING,DR MEHROTRA & PARTNER,35238588,"2,581.66",QUASPP,S9 5DH
Department of Health,NHS Sheffield CCG,31/01/2021,C&M-PMS Contract Value,PRC DELEGATED CO-COMMISSIONING,DR MILNER & PARTNERS,35238590,"77,922.06",BABALP,S6 4JQ
Department of Health,NHS Sheffield CCG,31/01/2021,C&M-PMS DES Learn Dsblty Hlth Chk,PRC DELEGATED CO-COMMISSIONING,DR MILNER & PARTNERS,35238590,280.00,LEARNP,S6 4JQ
Department of Health,NHS Sheffield CCG,31/01/2021,C&M-PMS Out of Hours Opt Outs,PRC DELEGATED CO-COMMISSIONING,DR MILNER & PARTNERS,35238590,7.60,APMOOH,S6 4JQ
Department of Health,NHS Sheffield CCG,31/01/2021,C&M-PMS PCN DES Participation,PRC DELEGATED CO-COMMISSIONING,DR MILNER & PARTNERS,35238590,"2,907.56",PARTIP,S6 4JQ
Department of Health,NHS Sheffield CCG,31/01/2021,C&M-PMS Prem Actual Rent,PRC DELEGATED CO-COMMISSIONING,DR MILNER & PARTNERS,35238590,"11,382.00",RENT,S6 4JQ
Department of Health,NHS Sheffield CCG,31/01/2021,C&M-PMS Prem Notional Rent,PRC DELEGATED CO-COMMISSIONING,DR MILNER & PARTNERS,35238590,"4,462.42",NRENT,S6 4JQ
Department of Health,NHS Sheffield CCG,31/01/2021,C&M-PMS Prem Rates,PRC DELEGATED CO-COMMISSIONING,DR MILNER & PARTNERS,35238590,"2,766.00",RANDRP,S6 4JQ
Department of Health,NHS Sheffield CCG,31/01/2021,C&M-PMS Prem Water Rates,PRC DELEGATED CO-COMMISSIONING,DR MILNER & PARTNERS,35238590,184.82,RAMWP,S6 4JQ
Department of Health,NHS Sheffield CCG,31/01/2021,C&M-PMS QOF Aspiration,PRC DELEGATED CO-COMMISSIONING,DR MILNER & PARTNERS,35238590,"6,594.77",QUASPP,S6 4JQ
Department of Health,NHS Sheffield CCG,31/01/2021,C&M-GMS Cost of Drugs -Prescribing,LOCAL ENHANCED SERVICES,DUKE MEDICAL CENTRE,35423430,"3,228.92",DRGP,S2 2TD
Department of Health,NHS Sheffield CCG,31/01/2021,C&M-GMS Global Sum,PRC DELEGATED CO-COMMISSIONING,DUKE MEDICAL CENTRE,35423430,"62,666.70",GSUMG,S2 2TD
Department of Health,NHS Sheffield CCG,31/01/2021,C&M-GMS PCN DES Participation,PRC DELEGATED CO-COMMISSIONING,DUKE MEDICAL CENTRE,35423430,"2,313.14",PARTIG,S2 2TD
Department of Health,NHS Sheffield CCG,31/01/2021,C&M-GMS Prem Notional Rent,PRC DELEGATED CO-COMMISSIONING,DUKE MEDICAL CENTRE,35423430,"5,721.67",NRENT,S2 2TD
Department of Health,NHS Sheffield CCG,31/01/2021,C&M-GMS Prof Fees Prescribing,PRC DELEGATED CO-COMMISSIONING,DUKE MEDICAL CENTRE,35423430,763.34,DRGPPF,S2 2TD
Department of Health,NHS Sheffield CCG,31/01/2021,C&M-GMS QOF Aspiration,PRC DELEGATED CO-COMMISSIONING,DUKE MEDICAL CENTRE,35423430,"5,286.81",QUASPG,S2 2TD
Department of Health,NHS Sheffield CCG,31/01/2021,C&M-PMS Contract Value,PRC DELEGATED CO-COMMISSIONING,DUNNINC ROAD SURGERY,35238592,"21,770.95",BABALP,S5 0AE
Department of Health,NHS Sheffield CCG,31/01/2021,C&M-PMS Funding Differential Review,PRC DELEGATED CO-COMMISSIONING,DUNNINC ROAD SURGERY,35238592,"1,013.54",ZFUNFP,S5 0AE
Department of Health,NHS Sheffield CCG,31/01/2021,C&M-PMS PCN DES Participation,PRC DELEGATED CO-COMMISSIONING,DUNNINC ROAD SURGERY,35238592,817.62,PARTIP,S5 0AE
Department of Health,NHS Sheffield CCG,31/01/2021,C&M-PMS Prem Notional Rent,PRC DELEGATED CO-COMMISSIONING,DUNNINC ROAD SURGERY,35238592,"1,695.83",NRENT,S5 0AE
Department of Health,NHS Sheffield CCG,31/01/2021,C&M-PMS QOF Aspiration,PRC DELEGATED CO-COMMISSIONING,DUNNINC ROAD SURGERY,35238592,"1,748.41",QUASPP,S5 0AE
Department of Health,NHS Sheffield CCG,31/01/2021,C&M-PMS Contract Value,PRC DELEGATED CO-COMMISSIONING,DYKES HALL MEDICAL CENTRE,35238593,-564.76,BABALP,S6 4GQ
Department of Health,NHS Sheffield CCG,31/01/2021,C&M-PMS DES Extended Hours Access,PRC DELEGATED CO-COMMISSIONING,DYKES HALL MEDICAL CENTRE,35238593,"-4,338.04",EXTHDP,S6 4GQ
Department of Health,NHS Sheffield CCG,31/01/2021,C&M-PMS GP Statutory Levy,PRC DELEGATED CO-COMMISSIONING,DYKES HALL MEDICAL CENTRE,35238593,-330.58,STATL,S6 4GQ
Department of Health,NHS Sheffield CCG,31/01/2021,C&M-PMS Out of Hours Opt Outs,PRC DELEGATED CO-COMMISSIONING,DYKES HALL MEDICAL CENTRE,35238593,"-3,441.40",APMOOH,S6 4GQ
Department of Health,NHS Sheffield CCG,31/01/2021,C&M-PMS PCN DES Clinical Director,PRC DELEGATED CO-COMMISSIONING,DYKES HALL MEDICAL CENTRE,35238593,"-2,160.04",CLINDP,S6 4GQ
Department of Health,NHS Sheffield CCG,31/01/2021,C&M-PMS PCN DES PCN support,LOCAL ENHANCED SERVICES,DYKES HALL MEDICAL CENTRE,35238593,"-4,487.63",PCNSUP,S6 4GQ
Department of Health,NHS Sheffield CCG,31/01/2021,C&M-PMS PCN DES Participation,PRC DELEGATED CO-COMMISSIONING,DYKES HALL MEDICAL CENTRE,35238593,"-1,355.09",PARTIP,S6 4GQ
Department of Health,NHS Sheffield CCG,31/01/2021,C&M-PMS Contract Value,PRC DELEGATED CO-COMMISSIONING,DYKES HALL MEDICAL CENTRE,35238594,"72,296.17",BABALP,S6 4GQ
Department of Health,NHS Sheffield CCG,31/01/2021,C&M-PMS DES Extended Hours Access,PRC DELEGATED CO-COMMISSIONING,DYKES HALL MEDICAL CENTRE,35238594,"8,682.06",EXTHDP,S6 4GQ
Department of Health,NHS Sheffield CCG,31/01/2021,C&M-PMS Funding Differential Review,PRC DELEGATED CO-COMMISSIONING,DYKES HALL MEDICAL CENTRE,35238594,"2,946.72",ZFUNFP,S6 4GQ
Department of Health,NHS Sheffield CCG,31/01/2021,C&M-PMS Out of Hours Opt Outs,PRC DELEGATED CO-COMMISSIONING,DYKES HALL MEDICAL CENTRE,35238594,26.43,APMOOH,S6 4GQ
Department of Health,NHS Sheffield CCG,31/01/2021,C&M-PMS PCN DES Clinical Director,PRC DELEGATED CO-COMMISSIONING,DYKES HALL MEDICAL CENTRE,35238594,"4,314.10",CLINDP,S6 4GQ
Department of Health,NHS Sheffield CCG,31/01/2021,C&M-PMS PCN DES PCN support,LOCAL ENHANCED SERVICES,DYKES HALL MEDICAL CENTRE,35238594,"8,975.25",PCNSUP,S6 4GQ
Department of Health,NHS Sheffield CCG,31/01/2021,C&M-PMS PCN DES Participation,PRC DELEGATED CO-COMMISSIONING,DYKES HALL MEDICAL CENTRE,35238594,"2,712.49",PARTIP,S6 4GQ
Department of Health,NHS Sheffield CCG,31/01/2021,C&M-PMS PCO Locum Adop/Pat/Mat,PRC DELEGATED CO-COMMISSIONING,DYKES HALL MEDICAL CENTRE,35238594,"4,974.12",SICKC,S6 4GQ
Department of Health,NHS Sheffield CCG,31/01/2021,C&M-PMS Prem Notional Rent,PRC DELEGATED CO-COMMISSIONING,DYKES HALL MEDICAL CENTRE,35238594,"5,406.24",NRENT,S6 4GQ
Department of Health,NHS Sheffield CCG,31/01/2021,C&M-PMS Prem Water Rates,PRC DELEGATED CO-COMMISSIONING,DYKES HALL MEDICAL CENTRE,35238594,168.20,RAMWP,S6 4GQ
Department of Health,NHS Sheffield CCG,31/01/2021,C&M-PMS QOF Aspiration,PRC DELEGATED CO-COMMISSIONING,DYKES HALL MEDICAL CENTRE,35238594,"8,087.38",QUASPP,S6 4GQ
Department of Health,NHS Sheffield CCG,31/01/2021,C&M- PCN DES Nursing Associate,PRC DELEGATED CO-COMMISSIONING,DYKES HALL MEDICAL CENTRE,35458927,"2,237.64",,S6 4GQ
Department of Health,NHS Sheffield CCG,31/01/2021,C&M-PMS PCN DES Clin Pharmacist,PRC DELEGATED CO-COMMISSIONING,DYKES HALL MEDICAL CENTRE,35458927,"16,192.10",,S6 4GQ
Department of Health,NHS Sheffield CCG,31/01/2021,C&M-PMS PCN DES Physiotherapist,PRC DELEGATED CO-COMMISSIONING,DYKES HALL MEDICAL CENTRE,35458927,"6,494.84",,S6 4GQ
Department of Health,NHS Sheffield CCG,31/01/2021,C&M-PMS PCN DES Soc Prescribing,PRC DELEGATED CO-COMMISSIONING,DYKES HALL MEDICAL CENTRE,35458927,"2,949.00",,S6 4GQ
Department of Health,NHS Sheffield CCG,31/01/2021,C&M-PMS Contract Value,PRC DELEGATED CO-COMMISSIONING,EAST BANK MEDICAL CENTRE,35238596,"50,300.28",BABALP,S2 2AG
Department of Health,NHS Sheffield CCG,31/01/2021,C&M-PMS PCN DES Participation,PRC DELEGATED CO-COMMISSIONING,EAST BANK MEDICAL CENTRE,35238596,"1,875.96",PARTIP,S2 2AG
Department of Health,NHS Sheffield CCG,31/01/2021,C&M-PMS Prem Notional Rent,PRC DELEGATED CO-COMMISSIONING,EAST BANK MEDICAL CENTRE,35238596,"10,583.33",NRENT,S2 2AG
Department of Health,NHS Sheffield CCG,31/01/2021,C&M-PMS Prem Rates,PRC DELEGATED CO-COMMISSIONING,EAST BANK MEDICAL CENTRE,35238596,"2,944.00",RANDRP,S2 2AG
Department of Health,NHS Sheffield CCG,31/01/2021,C&M-PMS QOF Aspiration,PRC DELEGATED CO-COMMISSIONING,EAST BANK MEDICAL CENTRE,35238596,"5,136.41",QUASPP,S2 2AG
Department of Health,NHS Sheffield CCG,31/01/2021,C&M-GMS DES Extended Hours Access,PRC DELEGATED CO-COMMISSIONING,ECCLESFIELD GROUP PRACTICE,35423425,"-5,160.79",EXTHDG,S35 9XQ
Department of Health,NHS Sheffield CCG,31/01/2021,C&M-GMS GP Statutory Levy,PRC DELEGATED CO-COMMISSIONING,ECCLESFIELD GROUP PRACTICE,35423425,-301.42,STATL,S35 9XQ
Department of Health,NHS Sheffield CCG,31/01/2021,C&M-GMS PCN DES Clinical Director,PRC DELEGATED CO-COMMISSIONING,ECCLESFIELD GROUP PRACTICE,35423425,"-2,569.72",CLINDG,S35 9XQ
Department of Health,NHS Sheffield CCG,31/01/2021,C&M-GMS PCN DES PCN support,LOCAL ENHANCED SERVICES,ECCLESFIELD GROUP PRACTICE,35423425,"-5,338.75",PCNSUG,S35 9XQ
Department of Health,NHS Sheffield CCG,31/01/2021,C&M-GMS PCN DES Participation,PRC DELEGATED CO-COMMISSIONING,ECCLESFIELD GROUP PRACTICE,35423425,"-1,438.45",PARTIG,S35 9XQ
Department of Health,NHS Sheffield CCG,31/01/2021,C&M-GMS Cost of Drugs -Prescribing,LOCAL ENHANCED SERVICES,ECCLESFIELD GROUP PRACTICE,35423426,"6,785.04",DRGP,S35 9XQ
Department of Health,NHS Sheffield CCG,31/01/2021,C&M-GMS DES Extended Hours Access,PRC DELEGATED CO-COMMISSIONING,ECCLESFIELD GROUP PRACTICE,35423426,"10,328.70",EXTHDG,S35 9XQ
Department of Health,NHS Sheffield CCG,31/01/2021,C&M-GMS Global Sum,PRC DELEGATED CO-COMMISSIONING,ECCLESFIELD GROUP PRACTICE,35423426,"72,807.45",GSUMG,S35 9XQ
Department of Health,NHS Sheffield CCG,31/01/2021,C&M-GMS PCN DES Clinical Director,PRC DELEGATED CO-COMMISSIONING,ECCLESFIELD GROUP PRACTICE,35423426,"5,132.32",CLINDG,S35 9XQ
Department of Health,NHS Sheffield CCG,31/01/2021,C&M-GMS PCN DES PCN support,LOCAL ENHANCED SERVICES,ECCLESFIELD GROUP PRACTICE,35423426,"10,677.50",PCNSUG,S35 9XQ
Department of Health,NHS Sheffield CCG,31/01/2021,C&M-GMS PCN DES Participation,PRC DELEGATED CO-COMMISSIONING,ECCLESFIELD GROUP PRACTICE,35423426,"2,879.35",PARTIG,S35 9XQ
Department of Health,NHS Sheffield CCG,31/01/2021,C&M-GMS PCO Locum Adop/Pat/Mat,PRC DELEGATED CO-COMMISSIONING,ECCLESFIELD GROUP PRACTICE,35423426,"13,317.60",LOCADG,S35 9XQ
Department of Health,NHS Sheffield CCG,31/01/2021,C&M-GMS PCO Other,PRC DELEGATED CO-COMMISSIONING,ECCLESFIELD GROUP PRACTICE,35423426,"5,388.00",CQCRG,S35 9XQ
Department of Health,NHS Sheffield CCG,31/01/2021,C&M-GMS Prem Notional Rent,PRC DELEGATED CO-COMMISSIONING,ECCLESFIELD GROUP PRACTICE,35423426,"6,805.42",NRENT,S35 9XQ
Department of Health,NHS Sheffield CCG,31/01/2021,C&M-GMS Prem Rates,PRC DELEGATED CO-COMMISSIONING,ECCLESFIELD GROUP PRACTICE,35423426,551.00,RANDR,S35 9XQ
Department of Health,NHS Sheffield CCG,31/01/2021,C&M-GMS Prof Fees Prescribing,PRC DELEGATED CO-COMMISSIONING,ECCLESFIELD GROUP PRACTICE,35423426,"1,417.24",DRGPPF,S35 9XQ
Department of Health,NHS Sheffield CCG,31/01/2021,C&M-GMS QOF Aspiration,PRC DELEGATED CO-COMMISSIONING,ECCLESFIELD GROUP PRACTICE,35423426,"9,221.39",QUASPG,S35 9XQ
Department of Health,NHS Sheffield CCG,31/01/2021,C&M-GMS Cost of Drugs -Prescribing,LOCAL ENHANCED SERVICES,ELM LANE SURGERY,35423428,"1,942.55",DRGP,S5 7TW
Department of Health,NHS Sheffield CCG,31/01/2021,C&M-GMS Global Sum,PRC DELEGATED CO-COMMISSIONING,ELM LANE SURGERY,35423428,"43,737.39",GSUMG,S5 7TW
Department of Health,NHS Sheffield CCG,31/01/2021,C&M-GMS PCN DES Participation,PRC DELEGATED CO-COMMISSIONING,ELM LANE SURGERY,35423428,"1,703.93",PARTIG,S5 7TW
Department of Health,NHS Sheffield CCG,31/01/2021,C&M-GMS Prem Notional Rent,PRC DELEGATED CO-COMMISSIONING,ELM LANE SURGERY,35423428,"5,343.00",NRENT,S5 7TW
Department of Health,NHS Sheffield CCG,31/01/2021,C&M-GMS Prem Rates,PRC DELEGATED CO-COMMISSIONING,ELM LANE SURGERY,35423428,"1,527.00",RANDR,S5 7TW
Department of Health,NHS Sheffield CCG,31/01/2021,C&M-GMS Prof Fees Prescribing,PRC DELEGATED CO-COMMISSIONING,ELM LANE SURGERY,35423428,266.91,DRGPPF,S5 7TW
Department of Health,NHS Sheffield CCG,31/01/2021,C&M-GMS QOF Aspiration,PRC DELEGATED CO-COMMISSIONING,ELM LANE SURGERY,35423428,"4,787.76",QUASPG,S5 7TW
Department of Health,NHS Sheffield CCG,31/01/2021,Cont Care-Physical Disab (<65),CHC ADULT FULLY FUNDED,FAIRWINDS HEALTH CARE LTD,35259170,"40,311.92",CHC SCHEDULE JANUARY 2021 - Fairwinds Nursing Home,S61 1AJ
Department of Health,NHS Sheffield CCG,31/01/2021,C&M-PMS Contract Value,PRC DELEGATED CO-COMMISSIONING,FALKLAND HOUSE,35238600,"26,835.75",BABALP,S11 7PL
Department of Health,NHS Sheffield CCG,31/01/2021,C&M-PMS Out of Hours Opt Outs,PRC DELEGATED CO-COMMISSIONING,FALKLAND HOUSE,35238600,8.04,APMOOH,S11 7PL
Department of Health,NHS Sheffield CCG,31/01/2021,C&M-PMS PCN DES Participation,PRC DELEGATED CO-COMMISSIONING,FALKLAND HOUSE,35238600,994.89,PARTIP,S11 7PL
Department of Health,NHS Sheffield CCG,31/01/2021,C&M-PMS PCO Other,PRC DELEGATED CO-COMMISSIONING,FALKLAND HOUSE,35238600,276.50,CQCRP,S11 7PL
Department of Health,NHS Sheffield CCG,31/01/2021,C&M-PMS Prem Notional Rent,PRC DELEGATED CO-COMMISSIONING,FALKLAND HOUSE,35238600,"1,866.67",NRENT,S11 7PL
Department of Health,NHS Sheffield CCG,31/01/2021,C&M-PMS Prem Rates,PRC DELEGATED CO-COMMISSIONING,FALKLAND HOUSE,35238600,786.00,RANDRP,S11 7PL
Department of Health,NHS Sheffield CCG,31/01/2021,C&M-PMS QOF Aspiration,PRC DELEGATED CO-COMMISSIONING,FALKLAND HOUSE,35238600,"2,962.47",QUASPP,S11 7PL
Department of Health,NHS Sheffield CCG,31/01/2021,C&M-GMS Cost of Drugs -Prescribing,LOCAL ENHANCED SERVICES,FAR LANE MEDICAL CENTRE,35423437,"3,547.15",DRGP,S6 4FA
Department of Health,NHS Sheffield CCG,31/01/2021,C&M-GMS Global Sum,PRC DELEGATED CO-COMMISSIONING,FAR LANE MEDICAL CENTRE,35423437,"57,586.40",GSUMG,S6 4FA
Department of Health,NHS Sheffield CCG,31/01/2021,C&M-GMS PCN DES Participation,PRC DELEGATED CO-COMMISSIONING,FAR LANE MEDICAL CENTRE,35423437,"2,277.76",PARTIG,S6 4FA
Department of Health,NHS Sheffield CCG,31/01/2021,C&M-GMS PCO Other,PRC DELEGATED CO-COMMISSIONING,FAR LANE MEDICAL CENTRE,35423437,460.10,CQCRG,S6 4FA
Department of Health,NHS Sheffield CCG,31/01/2021,C&M-GMS Prem Notional Rent,PRC DELEGATED CO-COMMISSIONING,FAR LANE MEDICAL CENTRE,35423437,"3,504.17",NRENT,S6 4FA
Department of Health,NHS Sheffield CCG,31/01/2021,C&M-GMS Prem Rates,PRC DELEGATED CO-COMMISSIONING,FAR LANE MEDICAL CENTRE,35423437,"1,277.00",RANDR,S6 4FA
Department of Health,NHS Sheffield CCG,31/01/2021,C&M-GMS Prof Fees Prescribing,PRC DELEGATED CO-COMMISSIONING,FAR LANE MEDICAL CENTRE,35423437,856.74,DRGPPF,S6 4FA
Department of Health,NHS Sheffield CCG,31/01/2021,C&M-GMS QOF Aspiration,PRC DELEGATED CO-COMMISSIONING,FAR LANE MEDICAL CENTRE,35423437,"6,055.38",QUASPG,S6 4FA
Department of Health,NHS Sheffield CCG,31/01/2021,C&M-PMS Contract Value,PRC DELEGATED CO-COMMISSIONING,FIRTH PARK SURGERY,35238598,"77,948.73",BABALP,S5 6HH
Department of Health,NHS Sheffield CCG,31/01/2021,C&M-PMS Out of Hours Opt Outs,PRC DELEGATED CO-COMMISSIONING,FIRTH PARK SURGERY,35238598,7.50,APMOOH,S5 6HH
Department of Health,NHS Sheffield CCG,31/01/2021,C&M-PMS PCN DES Participation,PRC DELEGATED CO-COMMISSIONING,FIRTH PARK SURGERY,35238598,"2,909.44",PARTIP,S5 6HH
Department of Health,NHS Sheffield CCG,31/01/2021,C&M-PMS Prem Notional Rent,PRC DELEGATED CO-COMMISSIONING,FIRTH PARK SURGERY,35238598,"4,500.00",NRENT,S5 6HH
Department of Health,NHS Sheffield CCG,31/01/2021,C&M-PMS Prem Rates,PRC DELEGATED CO-COMMISSIONING,FIRTH PARK SURGERY,35238598,"1,844.00",RANDRP,S5 6HH
Department of Health,NHS Sheffield CCG,31/01/2021,C&M-PMS QOF Aspiration,PRC DELEGATED CO-COMMISSIONING,FIRTH PARK SURGERY,35238598,"7,425.15",QUASPP,S5 6HH
Department of Health,NHS Sheffield CCG,31/01/2021,C&M-PMS Contract Value,PRC DELEGATED CO-COMMISSIONING,FORGE HEALTH GROUP,35238646,-784.29,BABALP,S3 9DL
Department of Health,NHS Sheffield CCG,31/01/2021,C&M-PMS DES Extended Hours Access,PRC DELEGATED CO-COMMISSIONING,FORGE HEALTH GROUP,35238646,"-6,849.44",EXTHDP,S3 9DL
Department of Health,NHS Sheffield CCG,31/01/2021,C&M-PMS GP Statutory Levy,PRC DELEGATED CO-COMMISSIONING,FORGE HEALTH GROUP,35238646,-516.71,STATL,S3 9DL
Department of Health,NHS Sheffield CCG,31/01/2021,C&M-PMS Out of Hours Opt Outs,PRC DELEGATED CO-COMMISSIONING,FORGE HEALTH GROUP,35238646,"-5,883.56",APMOOH,S3 9DL
Department of Health,NHS Sheffield CCG,31/01/2021,C&M-PMS PCN DES Clinical Director,PRC DELEGATED CO-COMMISSIONING,FORGE HEALTH GROUP,35238646,"-3,410.55",CLINDP,S3 9DL
Department of Health,NHS Sheffield CCG,31/01/2021,C&M-PMS PCN DES PCN support,LOCAL ENHANCED SERVICES,FORGE HEALTH GROUP,35238646,"-7,085.63",PCNSUP,S3 9DL
Department of Health,NHS Sheffield CCG,31/01/2021,C&M-PMS PCN DES Participation,PRC DELEGATED CO-COMMISSIONING,FORGE HEALTH GROUP,35238646,"-2,286.18",PARTIP,S3 9DL
Department of Health,NHS Sheffield CCG,31/01/2021,C&M-PMS Prem Healthcentre Rent,PRC DELEGATED CO-COMMISSIONING,FORGE HEALTH GROUP,35238646,-927.37,HEALTH,S3 9DL
Department of Health,NHS Sheffield CCG,31/01/2021,C&M-PMS Prem Notional Rent,PRC DELEGATED CO-COMMISSIONING,FORGE HEALTH GROUP,35238646,"-1,589.77",NRENT,S3 9DL
Department of Health,NHS Sheffield CCG,31/01/2021,C&M-PMS Contract Value,PRC DELEGATED CO-COMMISSIONING,FORGE HEALTH GROUP,35238647,"123,756.27",BABALP,S3 9DL
Department of Health,NHS Sheffield CCG,31/01/2021,C&M-PMS DES Extended Hours Access,PRC DELEGATED CO-COMMISSIONING,FORGE HEALTH GROUP,35238647,"13,708.32",EXTHDP,S3 9DL
Department of Health,NHS Sheffield CCG,31/01/2021,C&M-PMS Out of Hours Opt Outs,PRC DELEGATED CO-COMMISSIONING,FORGE HEALTH GROUP,35238647,37.43,APMOOH,S3 9DL
Department of Health,NHS Sheffield CCG,31/01/2021,C&M-PMS PCN DES Clinical Director,PRC DELEGATED CO-COMMISSIONING,FORGE HEALTH GROUP,35238647,"6,811.65",CLINDP,S3 9DL
Department of Health,NHS Sheffield CCG,31/01/2021,C&M-PMS PCN DES PCN support,LOCAL ENHANCED SERVICES,FORGE HEALTH GROUP,35238647,"14,171.25",PCNSUP,S3 9DL
Department of Health,NHS Sheffield CCG,31/01/2021,C&M-PMS PCN DES Participation,PRC DELEGATED CO-COMMISSIONING,FORGE HEALTH GROUP,35238647,"4,576.26",PARTIP,S3 9DL
Department of Health,NHS Sheffield CCG,31/01/2021,C&M-PMS PCO Other,PRC DELEGATED CO-COMMISSIONING,FORGE HEALTH GROUP,35238647,"8,849.00",CQCRP,S3 9DL
Department of Health,NHS Sheffield CCG,31/01/2021,C&M-PMS Prem Healthcentre Rent,PRC DELEGATED CO-COMMISSIONING,FORGE HEALTH GROUP,35238647,"35,472.33",HEALTH,S3 9DL
Department of Health,NHS Sheffield CCG,31/01/2021,C&M-PMS Prem Notional Rent,PRC DELEGATED CO-COMMISSIONING,FORGE HEALTH GROUP,35238647,"11,481.43",NRENT,S3 9DL
Department of Health,NHS Sheffield CCG,31/01/2021,C&M-PMS Prem Rates,PRC DELEGATED CO-COMMISSIONING,FORGE HEALTH GROUP,35238647,"2,370.00",RANDRP,S3 9DL
Department of Health,NHS Sheffield CCG,31/01/2021,C&M-PMS Prem Water Rates,PRC DELEGATED CO-COMMISSIONING,FORGE HEALTH GROUP,35238647,546.65,RAMWP,S3 9DL
Department of Health,NHS Sheffield CCG,31/01/2021,C&M-PMS QOF Aspiration,PRC DELEGATED CO-COMMISSIONING,FORGE HEALTH GROUP,35238647,"11,197.01",QUASPP,S3 9DL
Department of Health,NHS Sheffield CCG,31/01/2021,C&M-PMS Contract Value,PRC DELEGATED CO-COMMISSIONING,FOXHILL MEDICAL CENTRE SHEFFIELD,35238645,"52,509.47",BABALP,S6 1GA
Department of Health,NHS Sheffield CCG,31/01/2021,C&M-PMS Funding Differential Review,PRC DELEGATED CO-COMMISSIONING,FOXHILL MEDICAL CENTRE SHEFFIELD,35238645,"2,315.88",ZFUNFP,S6 1GA
Department of Health,NHS Sheffield CCG,31/01/2021,C&M-PMS Out of Hours Opt Outs,PRC DELEGATED CO-COMMISSIONING,FOXHILL MEDICAL CENTRE SHEFFIELD,35238645,20.41,APMOOH,S6 1GA
Department of Health,NHS Sheffield CCG,31/01/2021,C&M-PMS PCN DES Participation,PRC DELEGATED CO-COMMISSIONING,FOXHILL MEDICAL CENTRE SHEFFIELD,35238645,"1,963.57",PARTIP,S6 1GA
Department of Health,NHS Sheffield CCG,31/01/2021,C&M-PMS PCO Locum Adop/Pat/Mat,PRC DELEGATED CO-COMMISSIONING,FOXHILL MEDICAL CENTRE SHEFFIELD,35238645,"11,043.72",SICKC,S6 1GA
Department of Health,NHS Sheffield CCG,31/01/2021,C&M-PMS PCO Locum Sickness,PRC DELEGATED CO-COMMISSIONING,FOXHILL MEDICAL CENTRE SHEFFIELD,35238645,"3,291.66",SICKS,S6 1GA
Department of Health,NHS Sheffield CCG,31/01/2021,C&M-PMS PCO Other,PRC DELEGATED CO-COMMISSIONING,FOXHILL MEDICAL CENTRE SHEFFIELD,35238645,400.50,CQCRP,S6 1GA
Department of Health,NHS Sheffield CCG,31/01/2021,C&M-PMS PCO Seniority,PRC DELEGATED CO-COMMISSIONING,FOXHILL MEDICAL CENTRE SHEFFIELD,35238645,"4,084.63",SEN,S6 1GA
Department of Health,NHS Sheffield CCG,31/01/2021,C&M-PMS Prem Healthcentre Rent,PRC DELEGATED CO-COMMISSIONING,FOXHILL MEDICAL CENTRE SHEFFIELD,35238645,"47,880.58",HEALTH,S6 1GA
Department of Health,NHS Sheffield CCG,31/01/2021,C&M-PMS QOF Aspiration,PRC DELEGATED CO-COMMISSIONING,FOXHILL MEDICAL CENTRE SHEFFIELD,35238645,"5,429.40",QUASPP,S6 1GA
Department of Health,NHS Sheffield CCG,31/01/2021,C&M-PMS Contract Value,PRC DELEGATED CO-COMMISSIONING,GLEADLESS MEDICAL CENTRE,35238602,"70,297.55",BABALP,S14 1PQ
Department of Health,NHS Sheffield CCG,31/01/2021,C&M-PMS Funding Differential Review,PRC DELEGATED CO-COMMISSIONING,GLEADLESS MEDICAL CENTRE,35238602,"3,095.94",ZFUNFP,S14 1PQ
Department of Health,NHS Sheffield CCG,31/01/2021,C&M-PMS Out of Hours Opt Outs,PRC DELEGATED CO-COMMISSIONING,GLEADLESS MEDICAL CENTRE,35238602,33.34,APMOOH,S14 1PQ
Department of Health,NHS Sheffield CCG,31/01/2021,C&M-PMS PCN DES Participation,PRC DELEGATED CO-COMMISSIONING,GLEADLESS MEDICAL CENTRE,35238602,"2,632.76",PARTIP,S14 1PQ
Department of Health,NHS Sheffield CCG,31/01/2021,C&M-PMS PCO Other,PRC DELEGATED CO-COMMISSIONING,GLEADLESS MEDICAL CENTRE,35238602,559.20,CQCRP,S14 1PQ
Department of Health,NHS Sheffield CCG,31/01/2021,C&M-PMS Prem Notional Rent,PRC DELEGATED CO-COMMISSIONING,GLEADLESS MEDICAL CENTRE,35238602,"6,750.00",NRENT,S14 1PQ
Department of Health,NHS Sheffield CCG,31/01/2021,C&M-PMS Prem Rates,PRC DELEGATED CO-COMMISSIONING,GLEADLESS MEDICAL CENTRE,35238602,"1,684.00",RANDRP,S14 1PQ
Department of Health,NHS Sheffield CCG,31/01/2021,C&M-PMS QOF Aspiration,PRC DELEGATED CO-COMMISSIONING,GLEADLESS MEDICAL CENTRE,35238602,"7,390.52",QUASPP,S14 1PQ
Department of Health,NHS Sheffield CCG,31/01/2021,C&M-GMS Cost of Drugs -Prescribing,LOCAL ENHANCED SERVICES,GRENOSIDE SURGERY,35423445,"6,836.97",DRGP,S35 8NX
Department of Health,NHS Sheffield CCG,31/01/2021,C&M-GMS Global Sum,PRC DELEGATED CO-COMMISSIONING,GRENOSIDE SURGERY,35423445,"63,170.11",GSUMG,S35 8NX
Department of Health,NHS Sheffield CCG,31/01/2021,C&M-GMS PCN DES Participation,PRC DELEGATED CO-COMMISSIONING,GRENOSIDE SURGERY,35423445,"2,442.24",PARTIG,S35 8NX
Department of Health,NHS Sheffield CCG,31/01/2021,C&M-GMS PCO Other,PRC DELEGATED CO-COMMISSIONING,GRENOSIDE SURGERY,35423445,"4,851.00",CQCRG,S35 8NX
Department of Health,NHS Sheffield CCG,31/01/2021,C&M-GMS Prem Notional Rent,PRC DELEGATED CO-COMMISSIONING,GRENOSIDE SURGERY,35423445,"8,110.42",NRENT,S35 8NX
Department of Health,NHS Sheffield CCG,31/01/2021,C&M-GMS Prem Rates,PRC DELEGATED CO-COMMISSIONING,GRENOSIDE SURGERY,35423445,"2,109.00",RANDR,S35 8NX
Department of Health,NHS Sheffield CCG,31/01/2021,C&M-GMS Prof Fees Prescribing,PRC DELEGATED CO-COMMISSIONING,GRENOSIDE SURGERY,35423445,"1,238.43",DRGPPF,S35 8NX
Department of Health,NHS Sheffield CCG,31/01/2021,C&M-GMS QOF Aspiration,PRC DELEGATED CO-COMMISSIONING,GRENOSIDE SURGERY,35423445,"5,840.97",QUASPG,S35 8NX
Department of Health,NHS Sheffield CCG,31/01/2021,C&M-GMS Cost of Drugs -Prescribing,LOCAL ENHANCED SERVICES,GREYSTONES MEDICAL CENTRE,35423447,"1,139.24",DRGP,S11 7BJ
Department of Health,NHS Sheffield CCG,31/01/2021,C&M-GMS Global Sum,PRC DELEGATED CO-COMMISSIONING,GREYSTONES MEDICAL CENTRE,35423447,"20,452.81",GSUMG,S11 7BJ
Department of Health,NHS Sheffield CCG,31/01/2021,C&M-GMS PCN DES Participation,PRC DELEGATED CO-COMMISSIONING,GREYSTONES MEDICAL CENTRE,35423447,814.36,PARTIG,S11 7BJ
Department of Health,NHS Sheffield CCG,31/01/2021,C&M-GMS PCO Other,PRC DELEGATED CO-COMMISSIONING,GREYSTONES MEDICAL CENTRE,35423447,264.20,CQCRG,S11 7BJ
Department of Health,NHS Sheffield CCG,31/01/2021,C&M-GMS Prem Notional Rent,PRC DELEGATED CO-COMMISSIONING,GREYSTONES MEDICAL CENTRE,35423447,"2,885.42",NRENT,S11 7BJ
Department of Health,NHS Sheffield CCG,31/01/2021,C&M-GMS Prem Rates,PRC DELEGATED CO-COMMISSIONING,GREYSTONES MEDICAL CENTRE,35423447,707.00,RANDR,S11 7BJ
Department of Health,NHS Sheffield CCG,31/01/2021,C&M-GMS Prof Fees Prescribing,PRC DELEGATED CO-COMMISSIONING,GREYSTONES MEDICAL CENTRE,35423447,269.57,DRGPPF,S11 7BJ
Department of Health,NHS Sheffield CCG,31/01/2021,C&M-GMS QOF Aspiration,PRC DELEGATED CO-COMMISSIONING,GREYSTONES MEDICAL CENTRE,35423447,"2,326.23",QUASPG,S11 7BJ
Department of Health,NHS Sheffield CCG,31/01/2021,C&M-PMS Contract Value,PRC DELEGATED CO-COMMISSIONING,HACKENTHORPE MEDICAL CENTRE,35238604,"49,874.12",BABALP,S12 4LA
Department of Health,NHS Sheffield CCG,31/01/2021,C&M-PMS Out of Hours Opt Outs,PRC DELEGATED CO-COMMISSIONING,HACKENTHORPE MEDICAL CENTRE,35238604,12.63,APMOOH,S12 4LA
Department of Health,NHS Sheffield CCG,31/01/2021,C&M-PMS PCN DES Participation,PRC DELEGATED CO-COMMISSIONING,HACKENTHORPE MEDICAL CENTRE,35238604,"1,853.42",PARTIP,S12 4LA
Department of Health,NHS Sheffield CCG,31/01/2021,C&M-PMS PCO Other,PRC DELEGATED CO-COMMISSIONING,HACKENTHORPE MEDICAL CENTRE,35238604,435.70,CQCRP,S12 4LA
Department of Health,NHS Sheffield CCG,31/01/2021,C&M-PMS Prem Notional Rent,PRC DELEGATED CO-COMMISSIONING,HACKENTHORPE MEDICAL CENTRE,35238604,"5,116.67",NRENT,S12 4LA
Department of Health,NHS Sheffield CCG,31/01/2021,C&M-PMS Prem Rates,PRC DELEGATED CO-COMMISSIONING,HACKENTHORPE MEDICAL CENTRE,35238604,"1,385.00",RANDRP,S12 4LA
Department of Health,NHS Sheffield CCG,31/01/2021,C&M-PMS Prem Water Rates,PRC DELEGATED CO-COMMISSIONING,HACKENTHORPE MEDICAL CENTRE,35238604,192.02,RAMWP,S12 4LA
Department of Health,NHS Sheffield CCG,31/01/2021,C&M-PMS QOF Aspiration,PRC DELEGATED CO-COMMISSIONING,HACKENTHORPE MEDICAL CENTRE,35238604,"6,490.74",QUASPP,S12 4LA
Department of Health,NHS Sheffield CCG,31/01/2021,C&M-GMS Cost of Drugs -Prescribing,LOCAL ENHANCED SERVICES,HANDSWORTH MEDICAL PRACTICE SHEFFIELD,35423443,"6,330.64",DRGP,S13 9BZ
Department of Health,NHS Sheffield CCG,31/01/2021,C&M-GMS Global Sum,PRC DELEGATED CO-COMMISSIONING,HANDSWORTH MEDICAL PRACTICE SHEFFIELD,35423443,"81,849.00",GSUMG,S13 9BZ
Department of Health,NHS Sheffield CCG,31/01/2021,C&M-GMS PCN DES Participation,PRC DELEGATED CO-COMMISSIONING,HANDSWORTH MEDICAL PRACTICE SHEFFIELD,35423443,"3,202.29",PARTIG,S13 9BZ
Department of Health,NHS Sheffield CCG,31/01/2021,C&M-GMS Prem Notional Rent,PRC DELEGATED CO-COMMISSIONING,HANDSWORTH MEDICAL PRACTICE SHEFFIELD,35423443,"3,321.66",NRENT,S13 9BZ
Department of Health,NHS Sheffield CCG,31/01/2021,C&M-GMS Prem Rates,PRC DELEGATED CO-COMMISSIONING,HANDSWORTH MEDICAL PRACTICE SHEFFIELD,35423443,"1,299.80",RANDR,S13 9BZ
Department of Health,NHS Sheffield CCG,31/01/2021,C&M-GMS Prem Water Rates,PRC DELEGATED CO-COMMISSIONING,HANDSWORTH MEDICAL PRACTICE SHEFFIELD,35423443,312.67,RAMW,S13 9BZ
Department of Health,NHS Sheffield CCG,31/01/2021,C&M-GMS Prof Fees Prescribing,PRC DELEGATED CO-COMMISSIONING,HANDSWORTH MEDICAL PRACTICE SHEFFIELD,35423443,"1,222.41",DRGPPF,S13 9BZ
Department of Health,NHS Sheffield CCG,31/01/2021,C&M-GMS QOF Aspiration,PRC DELEGATED CO-COMMISSIONING,HANDSWORTH MEDICAL PRACTICE SHEFFIELD,35423443,"7,866.23",QUASPG,S13 9BZ
Department of Health,NHS Sheffield CCG,31/01/2021,C&M-GMS Global Sum,PRC DELEGATED CO-COMMISSIONING,HAROLD STREET MEDICAL CENTRE,35423440,"19,830.15",GSUMG,S6 3QW
Department of Health,NHS Sheffield CCG,31/01/2021,C&M-GMS PCN DES Participation,PRC DELEGATED CO-COMMISSIONING,HAROLD STREET MEDICAL CENTRE,35423440,810.91,PARTIG,S6 3QW
Department of Health,NHS Sheffield CCG,31/01/2021,C&M-GMS PCO Other,PRC DELEGATED CO-COMMISSIONING,HAROLD STREET MEDICAL CENTRE,35423440,218.90,CQCRG,S6 3QW
Department of Health,NHS Sheffield CCG,31/01/2021,C&M-GMS Prem Notional Rent,PRC DELEGATED CO-COMMISSIONING,HAROLD STREET MEDICAL CENTRE,35423440,"2,337.50",NRENT,S6 3QW
Department of Health,NHS Sheffield CCG,31/01/2021,C&M-GMS QOF Aspiration,PRC DELEGATED CO-COMMISSIONING,HAROLD STREET MEDICAL CENTRE,35423440,"2,231.83",QUASPG,S6 3QW
Department of Health,NHS Sheffield CCG,31/01/2021,Cont Care-Physical Disab (<65),CHC ADULT FULLY FUNDED,HC ONE LTD,35259249,"29,676.59",CHC SCHEDULE JANUARY 2021 - Ascot Lodge Nursing Home (HC One),DL3 6AH
Department of Health,NHS Sheffield CCG,31/01/2021,C&M-GMS Cost of Drugs -Prescribing,LOCAL ENHANCED SERVICES,HEALTH CARE SURGERY,35423453,"1,094.96",DRGP,S5 8GS
Department of Health,NHS Sheffield CCG,31/01/2021,C&M-GMS Global Sum,PRC DELEGATED CO-COMMISSIONING,HEALTH CARE SURGERY,35423453,"40,343.73",GSUMG,S5 8GS
Department of Health,NHS Sheffield CCG,31/01/2021,C&M-GMS PCN DES Participation,PRC DELEGATED CO-COMMISSIONING,HEALTH CARE SURGERY,35423453,"1,606.00",PARTIG,S5 8GS
Department of Health,NHS Sheffield CCG,31/01/2021,C&M-GMS PCO Other,PRC DELEGATED CO-COMMISSIONING,HEALTH CARE SURGERY,35423453,337.00,CQCRG,S5 8GS
Department of Health,NHS Sheffield CCG,31/01/2021,C&M-GMS Prem Notional Rent,PRC DELEGATED CO-COMMISSIONING,HEALTH CARE SURGERY,35423453,"3,862.50",NRENT,S5 8GS
Department of Health,NHS Sheffield CCG,31/01/2021,C&M-GMS Prem Rates,PRC DELEGATED CO-COMMISSIONING,HEALTH CARE SURGERY,35423453,755.00,RANDR,S5 8GS
Department of Health,NHS Sheffield CCG,31/01/2021,C&M-GMS Prof Fees Prescribing,PRC DELEGATED CO-COMMISSIONING,HEALTH CARE SURGERY,35423453,298.93,DRGPPF,S5 8GS
Department of Health,NHS Sheffield CCG,31/01/2021,C&M-GMS QOF Aspiration,PRC DELEGATED CO-COMMISSIONING,HEALTH CARE SURGERY,35423453,"4,354.34",QUASPG,S5 8GS
Department of Health,NHS Sheffield CCG,31/01/2021,C&M-GMS Global Sum,PRC DELEGATED CO-COMMISSIONING,HEELEY GREEN SURGERY,35423449,"42,888.89",GSUMG,S2 3AJ
Department of Health,NHS Sheffield CCG,31/01/2021,C&M-GMS PCN DES Participation,PRC DELEGATED CO-COMMISSIONING,HEELEY GREEN SURGERY,35423449,"1,716.38",PARTIG,S2 3AJ
Department of Health,NHS Sheffield CCG,31/01/2021,C&M-GMS Prem Notional Rent,PRC DELEGATED CO-COMMISSIONING,HEELEY GREEN SURGERY,35423449,"3,254.17",NRENT,S2 3AJ
Department of Health,NHS Sheffield CCG,31/01/2021,C&M-GMS QOF Aspiration,PRC DELEGATED CO-COMMISSIONING,HEELEY GREEN SURGERY,35423449,"4,729.13",QUASPG,S2 3AJ
Department of Health,NHS Sheffield CCG,31/01/2021,C&M-GMS Cost of Drugs -Prescribing,LOCAL ENHANCED SERVICES,HOLLIES MEDICAL CENTRE,35423451,"3,702.94",DRGP,S11 9AL
Department of Health,NHS Sheffield CCG,31/01/2021,C&M-GMS Global Sum,PRC DELEGATED CO-COMMISSIONING,HOLLIES MEDICAL CENTRE,35423451,"64,789.43",GSUMG,S11 9AL
Department of Health,NHS Sheffield CCG,31/01/2021,C&M-GMS PCN DES Participation,PRC DELEGATED CO-COMMISSIONING,HOLLIES MEDICAL CENTRE,35423451,"2,495.24",PARTIG,S11 9AL
Department of Health,NHS Sheffield CCG,31/01/2021,C&M-GMS PCO Other,PRC DELEGATED CO-COMMISSIONING,HOLLIES MEDICAL CENTRE,35423451,608.70,CQCRG,S11 9AL
Department of Health,NHS Sheffield CCG,31/01/2021,C&M-GMS Prem Notional Rent,PRC DELEGATED CO-COMMISSIONING,HOLLIES MEDICAL CENTRE,35423451,"3,229.17",NRENT,S11 9AL
Department of Health,NHS Sheffield CCG,31/01/2021,C&M-GMS Prem Rates,PRC DELEGATED CO-COMMISSIONING,HOLLIES MEDICAL CENTRE,35423451,"1,818.00",RANDR,S11 9AL
Department of Health,NHS Sheffield CCG,31/01/2021,C&M-GMS Prof Fees Prescribing,PRC DELEGATED CO-COMMISSIONING,HOLLIES MEDICAL CENTRE,35423451,792.69,DRGPPF,S11 9AL
Department of Health,NHS Sheffield CCG,31/01/2021,C&M-GMS QOF Aspiration,PRC DELEGATED CO-COMMISSIONING,HOLLIES MEDICAL CENTRE,35423451,"7,315.52",QUASPG,S11 9AL
Department of Health,NHS Sheffield CCG,31/01/2021,Cont Care-Physical Disab (<65),CHC ADULT FULLY FUNDED,HORIZON CARE HOMES LTD,35259229,"34,711.90",CHC SCHEDULE JANUARY 2021 - Wood Hill Grange (Horizon Care Homes),S25 3QA
Department of Health,NHS Sheffield CCG,31/01/2021,Cont Care-Physical Disab (<65),CHC ADULT FULLY FUNDED,HORIZON CARE HOMES LTD,35259265,"35,390.43",CHC SCHEDULE JANUARY 2021 - Wood Hill House,S25 3QA
Department of Health,NHS Sheffield CCG,31/01/2021,Cont Care-Physical Disab (<65),CHC ADULT FULLY FUNDED,HORIZON CARE HOMES LTD,35259270,"86,958.01",CHC SCHEDULE JANUARY 2021 - Wood Hill Lodge,S25 3QA
Department of Health,NHS Sheffield CCG,31/01/2021,Clinical&Medical-Serv Recd-F Trsts,BEREAVEMENT SERVICE,HUMBER TEACHING NHS FOUNDATION TRUST,35284549,"50,667.00",,WF3 1WE
Department of Health,NHS Sheffield CCG,31/01/2021,Cont Care-Physical Disab (<65),CHC ADULT FULLY FUNDED,INLET LTD,35259277,"64,506.05",CHC SCHEDULE JANUARY 2021 - Loxley Court (Inlet Ltd),S48NB
Department of Health,NHS Sheffield CCG,31/01/2021,Cont Care- Prior Year Payments,CHC ADULT FULLY FUNDED,CHC RETRO,35404003,"28,844.71",,S11 9NG
Department of Health,NHS Sheffield CCG,31/01/2021,C&M-PMS Contract Value,PRC DELEGATED CO-COMMISSIONING,JAUNTY SPRINGS HEALTH CENTRE,35238606,"31,727.46",BABALP,S12 3DZ
Department of Health,NHS Sheffield CCG,31/01/2021,C&M-PMS DES Extended Hours Access,PRC DELEGATED CO-COMMISSIONING,JAUNTY SPRINGS HEALTH CENTRE,35238606,"8,433.94",EXTHDP,S12 3DZ
Department of Health,NHS Sheffield CCG,31/01/2021,C&M-PMS Out of Hours Opt Outs,PRC DELEGATED CO-COMMISSIONING,JAUNTY SPRINGS HEALTH CENTRE,35238606,12.20,APMOOH,S12 3DZ
Department of Health,NHS Sheffield CCG,31/01/2021,C&M-PMS PCN DES Clinical Director,PRC DELEGATED CO-COMMISSIONING,JAUNTY SPRINGS HEALTH CENTRE,35238606,"4,190.81",CLINDP,S12 3DZ
Department of Health,NHS Sheffield CCG,31/01/2021,C&M-PMS PCN DES PCN support,LOCAL ENHANCED SERVICES,JAUNTY SPRINGS HEALTH CENTRE,35238606,"8,718.76",PCNSUP,S12 3DZ
Department of Health,NHS Sheffield CCG,31/01/2021,C&M-PMS PCN DES Participation,PRC DELEGATED CO-COMMISSIONING,JAUNTY SPRINGS HEALTH CENTRE,35238606,592.79,PARTIP,S12 3DZ
Department of Health,NHS Sheffield CCG,31/01/2021,C&M-PMS PCO Other,PRC DELEGATED CO-COMMISSIONING,JAUNTY SPRINGS HEALTH CENTRE,35238606,266.60,CQCRP,S12 3DZ
Department of Health,NHS Sheffield CCG,31/01/2021,C&M-PMS Prem Notional Rent,PRC DELEGATED CO-COMMISSIONING,JAUNTY SPRINGS HEALTH CENTRE,35238606,"3,208.33",NRENT,S12 3DZ
Department of Health,NHS Sheffield CCG,31/01/2021,C&M-PMS Prem Rates,PRC DELEGATED CO-COMMISSIONING,JAUNTY SPRINGS HEALTH CENTRE,35238606,830.00,RANDRP,S12 3DZ
Department of Health,NHS Sheffield CCG,31/01/2021,C&M-PMS QOF Aspiration,PRC DELEGATED CO-COMMISSIONING,JAUNTY SPRINGS HEALTH CENTRE,35238606,"3,693.16",QUASPP,S12 3DZ
Department of Health,NHS Sheffield CCG,31/01/2021,Cont Care-Physical Disab (<65),CHC ADULT FULLY FUNDED,LAURELS & LIMES CARE HOME (THE),35259180,"30,641.38",CHC SCHEDULE JANUARY 2021 - The Laurels & The Limes Care Home,S10 5DN
Department of Health,NHS Sheffield CCG,31/01/2021,Hcare Srv Rec NHS Trust-Contract Baseline,ACUTE COMMISSIONING,LEEDS TEACHING HOSPITALS NHS TRUST,35284550,"47,860.51",,LS9 7TF
Department of Health,NHS Sheffield CCG,31/01/2021,Cont Care-Physical Disab (<65),CHC ADULT FULLY FUNDED,LONGLEY HEALTH CARE LTD,35259183,"154,590.03",CHC SCHEDULE JANUARY 2021 - Longley Park View Nursing Home (Exemplar HC),S5 7JZ
Department of Health,NHS Sheffield CCG,31/01/2021,C&M-PMS Contract Value,PRC DELEGATED CO-COMMISSIONING,MANCHESTER ROAD SURGERY SHEFFIELD,35238610,"33,963.95",BABALP,S10 5PN
Department of Health,NHS Sheffield CCG,31/01/2021,C&M-PMS Out of Hours Opt Outs,PRC DELEGATED CO-COMMISSIONING,MANCHESTER ROAD SURGERY SHEFFIELD,35238610,4.42,APMOOH,S10 5PN
Department of Health,NHS Sheffield CCG,31/01/2021,C&M-PMS PCN DES Participation,PRC DELEGATED CO-COMMISSIONING,MANCHESTER ROAD SURGERY SHEFFIELD,35238610,"1,263.76",PARTIP,S10 5PN
Department of Health,NHS Sheffield CCG,31/01/2021,C&M-PMS Prem Cost Rent,PRC DELEGATED CO-COMMISSIONING,MANCHESTER ROAD SURGERY SHEFFIELD,35238610,"3,091.46",COST,S10 5PN
Department of Health,NHS Sheffield CCG,31/01/2021,C&M-PMS Prem Notional Rent,PRC DELEGATED CO-COMMISSIONING,MANCHESTER ROAD SURGERY SHEFFIELD,35238610,442.92,NRENT,S10 5PN
Department of Health,NHS Sheffield CCG,31/01/2021,C&M-PMS Prem Rates,PRC DELEGATED CO-COMMISSIONING,MANCHESTER ROAD SURGERY SHEFFIELD,35238610,986.00,RANDRP,S10 5PN
Department of Health,NHS Sheffield CCG,31/01/2021,C&M-PMS QOF Aspiration,PRC DELEGATED CO-COMMISSIONING,MANCHESTER ROAD SURGERY SHEFFIELD,35238610,"3,837.07",QUASPP,S10 5PN
Department of Health,NHS Sheffield CCG,31/01/2021,C&M-PMS Contract Value,PRC DELEGATED CO-COMMISSIONING,MANOR & PARK GROUP PRACTICE,35241995,"73,769.32",BABALP,S2 5QQ
Department of Health,NHS Sheffield CCG,31/01/2021,C&M-PMS Out of Hours Opt Outs,PRC DELEGATED CO-COMMISSIONING,MANOR & PARK GROUP PRACTICE,35241995,65.67,APMOOH,S2 5QQ
Department of Health,NHS Sheffield CCG,31/01/2021,C&M-PMS PCN DES Participation,PRC DELEGATED CO-COMMISSIONING,MANOR & PARK GROUP PRACTICE,35241995,"2,777.35",PARTIP,S2 5QQ
Department of Health,NHS Sheffield CCG,31/01/2021,C&M-PMS Prem Notional Rent,PRC DELEGATED CO-COMMISSIONING,MANOR & PARK GROUP PRACTICE,35241995,"9,050.00",NRENT,S2 5QQ
Department of Health,NHS Sheffield CCG,31/01/2021,C&M-PMS Prem Rates,PRC DELEGATED CO-COMMISSIONING,MANOR & PARK GROUP PRACTICE,35241995,"1,864.00",RANDRP,S2 5QQ
Department of Health,NHS Sheffield CCG,31/01/2021,C&M-PMS QOF Aspiration,PRC DELEGATED CO-COMMISSIONING,MANOR & PARK GROUP PRACTICE,35241995,"6,093.98",QUASPP,S2 5QQ
Department of Health,NHS Sheffield CCG,31/01/2021,C&M-GMS Global Sum,PRC DELEGATED CO-COMMISSIONING,MATHEWS PRACTICE,35423461,"58,054.77",GSUMG,S2 4UJ
Department of Health,NHS Sheffield CCG,31/01/2021,C&M-GMS PCN DES Participation,PRC DELEGATED CO-COMMISSIONING,MATHEWS PRACTICE,35423461,"1,189.39",PARTIG,S2 4UJ
Department of Health,NHS Sheffield CCG,31/01/2021,C&M-GMS Prem Rates,PRC DELEGATED CO-COMMISSIONING,MATHEWS PRACTICE,35423461,"2,183.00",RANDR,S2 4UJ
Department of Health,NHS Sheffield CCG,31/01/2021,C&M-GMS QOF Aspiration,PRC DELEGATED CO-COMMISSIONING,MATHEWS PRACTICE,35423461,"7,173.28",QUASPG,S2 4UJ
Department of Health,NHS Sheffield CCG,31/01/2021,C&M-PMS Contract Value,PRC DELEGATED CO-COMMISSIONING,MEADOWHEAD GROUP PRACTICE,35238607,"-56,365.17",BABALP,S8 7RL
Department of Health,NHS Sheffield CCG,31/01/2021,C&M-PMS GP Statutory Levy,PRC DELEGATED CO-COMMISSIONING,MEADOWHEAD GROUP PRACTICE,35238607,-595.70,STATL,S8 7RL
Department of Health,NHS Sheffield CCG,31/01/2021,C&M-PMS Out of Hours Opt Outs,PRC DELEGATED CO-COMMISSIONING,MEADOWHEAD GROUP PRACTICE,35238607,"-8,921.16",APMOOH,S8 7RL
Department of Health,NHS Sheffield CCG,31/01/2021,C&M-PMS PCN DES Participation,PRC DELEGATED CO-COMMISSIONING,MEADOWHEAD GROUP PRACTICE,35238607,"-2,434.20",PARTIP,S8 7RL
Department of Health,NHS Sheffield CCG,31/01/2021,C&M-PMS Prem Cost Rent,PRC DELEGATED CO-COMMISSIONING,MEADOWHEAD GROUP PRACTICE,35238607,"-3,647.42",COST,S8 7RL
Department of Health,NHS Sheffield CCG,31/01/2021,C&M-PMS Prem Notional Rent,PRC DELEGATED CO-COMMISSIONING,MEADOWHEAD GROUP PRACTICE,35238607,"-3,358.33",NRENT,S8 7RL
Department of Health,NHS Sheffield CCG,31/01/2021,C&M-PMS Contract Value,PRC DELEGATED CO-COMMISSIONING,MEADOWHEAD GROUP PRACTICE,35238608,"187,283.13",BABALP,S8 7RL
Department of Health,NHS Sheffield CCG,31/01/2021,C&M-PMS Funding Differential Review,PRC DELEGATED CO-COMMISSIONING,MEADOWHEAD GROUP PRACTICE,35238608,"3,283.70",ZFUNFP,S8 7RL
Department of Health,NHS Sheffield CCG,31/01/2021,C&M-PMS Out of Hours Opt Outs,PRC DELEGATED CO-COMMISSIONING,MEADOWHEAD GROUP PRACTICE,35238608,"2,689.39",APMOOH,S8 7RL
Department of Health,NHS Sheffield CCG,31/01/2021,C&M-PMS PCN DES Participation,PRC DELEGATED CO-COMMISSIONING,MEADOWHEAD GROUP PRACTICE,35238608,"3,821.10",PARTIP,S8 7RL
Department of Health,NHS Sheffield CCG,31/01/2021,C&M-PMS PCO Other,PRC DELEGATED CO-COMMISSIONING,MEADOWHEAD GROUP PRACTICE,35238608,456.10,CQCRP,S8 7RL
Department of Health,NHS Sheffield CCG,31/01/2021,C&M-PMS Prem Cost Rent,PRC DELEGATED CO-COMMISSIONING,MEADOWHEAD GROUP PRACTICE,35238608,"3,647.42",COST,S8 7RL
Department of Health,NHS Sheffield CCG,31/01/2021,C&M-PMS Prem Healthcentre Rent,PRC DELEGATED CO-COMMISSIONING,MEADOWHEAD GROUP PRACTICE,35238608,"41,665.03",HEALTH,S8 7RL
Department of Health,NHS Sheffield CCG,31/01/2021,C&M-PMS Prem Notional Rent,PRC DELEGATED CO-COMMISSIONING,MEADOWHEAD GROUP PRACTICE,35238608,"8,905.00",NRENT,S8 7RL
Department of Health,NHS Sheffield CCG,31/01/2021,C&M-PMS Prem Rates,PRC DELEGATED CO-COMMISSIONING,MEADOWHEAD GROUP PRACTICE,35238608,"4,538.00",RANDRP,S8 7RL
Department of Health,NHS Sheffield CCG,31/01/2021,C&M-PMS QOF Aspiration,PRC DELEGATED CO-COMMISSIONING,MEADOWHEAD GROUP PRACTICE,35238608,"8,381.02",QUASPP,S8 7RL
Department of Health,NHS Sheffield CCG,31/01/2021,C&M-GMS Cost of Drugs -Prescribing,LOCAL ENHANCED SERVICES,MEDICAL CENTRE CRYSTAL PEAKS,35423457,"3,838.99",DRGP,S20 7HZ
Department of Health,NHS Sheffield CCG,31/01/2021,C&M-GMS Global Sum,PRC DELEGATED CO-COMMISSIONING,MEDICAL CENTRE CRYSTAL PEAKS,35423457,"49,449.40",GSUMG,S20 7HZ
Department of Health,NHS Sheffield CCG,31/01/2021,C&M-GMS PCN DES Participation,PRC DELEGATED CO-COMMISSIONING,MEDICAL CENTRE CRYSTAL PEAKS,35423457,"1,948.24",PARTIG,S20 7HZ
Department of Health,NHS Sheffield CCG,31/01/2021,C&M-GMS PCO Locum Adop/Pat/Mat,PRC DELEGATED CO-COMMISSIONING,MEDICAL CENTRE CRYSTAL PEAKS,35423457,"1,729.31",LOCADG,S20 7HZ
Department of Health,NHS Sheffield CCG,31/01/2021,C&M-GMS PCO Locum Sickness,PRC DELEGATED CO-COMMISSIONING,MEDICAL CENTRE CRYSTAL PEAKS,35423457,"1,640.02",LOCSIG,S20 7HZ
Department of Health,NHS Sheffield CCG,31/01/2021,C&M-GMS PCO Other,PRC DELEGATED CO-COMMISSIONING,MEDICAL CENTRE CRYSTAL PEAKS,35423457,431.60,CQCRG,S20 7HZ
Department of Health,NHS Sheffield CCG,31/01/2021,C&M-GMS Prem Actual Rent,PRC DELEGATED CO-COMMISSIONING,MEDICAL CENTRE CRYSTAL PEAKS,35423457,"17,610.00",RENT,S20 7HZ
Department of Health,NHS Sheffield CCG,31/01/2021,C&M-GMS Prem Notional Rent,PRC DELEGATED CO-COMMISSIONING,MEDICAL CENTRE CRYSTAL PEAKS,35423457,270.00,NRENT,S20 7HZ
Department of Health,NHS Sheffield CCG,31/01/2021,C&M-GMS Prem Rates,PRC DELEGATED CO-COMMISSIONING,MEDICAL CENTRE CRYSTAL PEAKS,35423457,"1,073.00",RANDR,S20 7HZ
Department of Health,NHS Sheffield CCG,31/01/2021,C&M-GMS Prof Fees Prescribing,PRC DELEGATED CO-COMMISSIONING,MEDICAL CENTRE CRYSTAL PEAKS,35423457,"1,281.12",DRGPPF,S20 7HZ
Department of Health,NHS Sheffield CCG,31/01/2021,C&M-GMS QOF Aspiration,PRC DELEGATED CO-COMMISSIONING,MEDICAL CENTRE CRYSTAL PEAKS,35423457,"6,365.03",QUASPG,S20 7HZ
Department of Health,NHS Sheffield CCG,31/01/2021,C&M-GMS Cost of Drugs -Prescribing,LOCAL ENHANCED SERVICES,MILL ROAD SURGERY SHEFFIELD,35423464,"3,041.96",DRGP,S35 9XQ
Department of Health,NHS Sheffield CCG,31/01/2021,C&M-GMS Global Sum,PRC DELEGATED CO-COMMISSIONING,MILL ROAD SURGERY SHEFFIELD,35423464,"42,373.03",GSUMG,S35 9XQ
Department of Health,NHS Sheffield CCG,31/01/2021,C&M-GMS PCN DES Participation,PRC DELEGATED CO-COMMISSIONING,MILL ROAD SURGERY SHEFFIELD,35423464,"1,669.50",PARTIG,S35 9XQ
Department of Health,NHS Sheffield CCG,31/01/2021,C&M-GMS PCO Other,PRC DELEGATED CO-COMMISSIONING,MILL ROAD SURGERY SHEFFIELD,35423464,352.00,CQCRG,S35 9XQ
Department of Health,NHS Sheffield CCG,31/01/2021,C&M-GMS Prem Notional Rent,PRC DELEGATED CO-COMMISSIONING,MILL ROAD SURGERY SHEFFIELD,35423464,"4,593.33",NRENT,S35 9XQ
Department of Health,NHS Sheffield CCG,31/01/2021,C&M-GMS Prem Rates,PRC DELEGATED CO-COMMISSIONING,MILL ROAD SURGERY SHEFFIELD,35423464,"1,073.00",RANDR,S35 9XQ
Department of Health,NHS Sheffield CCG,31/01/2021,C&M-GMS Prof Fees Prescribing,PRC DELEGATED CO-COMMISSIONING,MILL ROAD SURGERY SHEFFIELD,35423464,776.69,DRGPPF,S35 9XQ
Department of Health,NHS Sheffield CCG,31/01/2021,C&M-GMS QOF Aspiration,PRC DELEGATED CO-COMMISSIONING,MILL ROAD SURGERY SHEFFIELD,35423464,"5,109.19",QUASPG,S35 9XQ
Department of Health,NHS Sheffield CCG,31/01/2021,Clinical&Medical-Independent Sector,Mental Health Services - S117 Mental Health,MOORVILLE RESIDENTIAL,35245405,"29,616.47",,S10 5FA
Department of Health,NHS Sheffield CCG,31/01/2021,Cont Care-Learning Disab(<65),CHC ADULT FULLY FUNDED,MOORVILLE RESIDENTIAL,35245405,"9,423.38",https://nww.einvoice-prod.sbs.nhs.uk:8179/invoicepdf/dc2d9469-2cf4-5ae1-8330-f5a104a745dc,S10 5FA
Department of Health,NHS Sheffield CCG,31/01/2021,Cont Care-Learning Disab(<65),CHC ADULT JOINT FUNDED,MOORVILLE RESIDENTIAL,35245405,"4,333.18",,S10 5FA
Department of Health,NHS Sheffield CCG,31/01/2021,Cont Care-Mental Health (<65),CHC ADULT JOINT FUNDED,MOORVILLE RESIDENTIAL,35245405,506.23,,S10 5FA
Department of Health,NHS Sheffield CCG,31/01/2021,Clinical&Medical-Independent Sector,Mental Health Services - S117 Mental Health,MOORVILLE RESIDENTIAL,35446165,"26,750.36",,S10 5FA
Department of Health,NHS Sheffield CCG,31/01/2021,Cont Care-Learning Disab(<65),CHC ADULT FULLY FUNDED,MOORVILLE RESIDENTIAL,35446165,"8,511.44",https://nww.einvoice-prod.sbs.nhs.uk:8179/invoicepdf/8618e3d8-2955-5288-a0be-1f22324d8f6b,S10 5FA
Department of Health,NHS Sheffield CCG,31/01/2021,Cont Care-Learning Disab(<65),CHC ADULT JOINT FUNDED,MOORVILLE RESIDENTIAL,35446165,"3,913.84",,S10 5FA
Department of Health,NHS Sheffield CCG,31/01/2021,Cont Care-Mental Health (<65),CHC ADULT JOINT FUNDED,MOORVILLE RESIDENTIAL,35446165,457.24,,S10 5FA
Department of Health,NHS Sheffield CCG,31/01/2021,C&M-PMS Contract Value,PRC DELEGATED CO-COMMISSIONING,MOSBOROUGH HEALTH CENTRE,35238612,"51,597.24",BABALP,S20 5BQ
Department of Health,NHS Sheffield CCG,31/01/2021,C&M-PMS PCN DES Participation,PRC DELEGATED CO-COMMISSIONING,MOSBOROUGH HEALTH CENTRE,35238612,"1,911.97",PARTIP,S20 5BQ
Department of Health,NHS Sheffield CCG,31/01/2021,C&M-PMS PCO Other,PRC DELEGATED CO-COMMISSIONING,MOSBOROUGH HEALTH CENTRE,35238612,"4,422.00",CQCRP,S20 5BQ
Department of Health,NHS Sheffield CCG,31/01/2021,C&M-PMS Prem Notional Rent,PRC DELEGATED CO-COMMISSIONING,MOSBOROUGH HEALTH CENTRE,35238612,"4,091.67",NRENT,S20 5BQ
Department of Health,NHS Sheffield CCG,31/01/2021,C&M-PMS Prem Rates,PRC DELEGATED CO-COMMISSIONING,MOSBOROUGH HEALTH CENTRE,35238612,"1,604.00",RANDRP,S20 5BQ
Department of Health,NHS Sheffield CCG,31/01/2021,C&M-PMS QOF Aspiration,PRC DELEGATED CO-COMMISSIONING,MOSBOROUGH HEALTH CENTRE,35238612,"5,629.90",QUASPP,S20 5BQ
Department of Health,NHS Sheffield CCG,31/01/2021,C&M-PMS Contract Value,PRC DELEGATED CO-COMMISSIONING,NETHERGREEN SURGERY,35238614,"65,069.44",BABALP,S11 7EJ
Department of Health,NHS Sheffield CCG,31/01/2021,C&M-PMS Funding Differential Review,PRC DELEGATED CO-COMMISSIONING,NETHERGREEN SURGERY,35238614,"2,739.74",ZFUNFP,S11 7EJ
Department of Health,NHS Sheffield CCG,31/01/2021,C&M-PMS Out of Hours Opt Outs,PRC DELEGATED CO-COMMISSIONING,NETHERGREEN SURGERY,35238614,2.61,APMOOH,S11 7EJ
Department of Health,NHS Sheffield CCG,31/01/2021,C&M-PMS PCN DES Participation,PRC DELEGATED CO-COMMISSIONING,NETHERGREEN SURGERY,35238614,"2,404.52",PARTIP,S11 7EJ
Department of Health,NHS Sheffield CCG,31/01/2021,C&M-PMS Prem Cost Rent,PRC DELEGATED CO-COMMISSIONING,NETHERGREEN SURGERY,35238614,"5,057.33",COST,S11 7EJ
Department of Health,NHS Sheffield CCG,31/01/2021,C&M-PMS Prem Rates,PRC DELEGATED CO-COMMISSIONING,NETHERGREEN SURGERY,35238614,"1,285.00",RANDRP,S11 7EJ
Department of Health,NHS Sheffield CCG,31/01/2021,C&M-PMS Prem Water Rates,PRC DELEGATED CO-COMMISSIONING,NETHERGREEN SURGERY,35238614,152.33,RAMWP,S11 7EJ
Department of Health,NHS Sheffield CCG,31/01/2021,C&M-PMS QOF Aspiration,PRC DELEGATED CO-COMMISSIONING,NETHERGREEN SURGERY,35238614,"5,887.42",QUASPP,S11 7EJ
Department of Health,NHS Sheffield CCG,31/01/2021,FM Computer Contracts,PRIMARY CARE IT,NHS BARNSLEY CCG,35458808,"56,859.55",TELECOMS DATA LINES,WF3 1WE
Department of Health,NHS Sheffield CCG,31/01/2021,Recharge : Received,CONTINUING HEALTHCARE ASSESSMENT & SUPPORT,NHS DONCASTER CCG,35138752,"188,894.00",CCG INCOME - NON CONTRACT 44811015,WF3 1WE
Department of Health,NHS Sheffield CCG,31/01/2021,Clinical&Medical-Commercial Sector,PATIENT TRANSPORT,NHS DONCASTER CCG,35458708,"98,753.00",RECHARGE - HEALTH AUTHORITIES 52161009,WF3 1WE
Department of Health,NHS Sheffield CCG,31/01/2021,C&M-GMS Prem Other,PRC DELEGATED CO-COMMISSIONING,NHS ENGLAND,35458716,"6,116.03",,WF3 1WE
Department of Health,NHS Sheffield CCG,31/01/2021,Contract- Refuse & Clinical Waste,PRC DELEGATED CO-COMMISSIONING,NHS ENGLAND,35458716,"132,727.31",CCG RECHARGE,WF3 1WE
Department of Health,NHS Sheffield CCG,31/01/2021,Charges from CSU,BUSINESS INFORMATICS,NHS NORTH OF ENGLAND CSU,35446145,"27,375.92",DSCRO and Data Management ServicesJAN 21 NECS-3037-2180,WF3 1WE
Department of Health,NHS Sheffield CCG,31/01/2021,Rent,ESTATES AND FACILITIES,NHS PROPERTY SERVICES LTD,35138720,"42,530.51",https://nww.einvoice-prod.sbs.nhs.uk:8179/invoicepdf/5266cf67-fa47-5a43-b7d8-f279d1e316b5,EC2V 7NG
Department of Health,NHS Sheffield CCG,31/01/2021,Rent,RECHARGES NHS PROPERTY SERVICES LTD,NHS PROPERTY SERVICES LTD,35138720,"14,374.11",,EC2V 7NG
Department of Health,NHS Sheffield CCG,31/01/2021,Service Charge,ESTATES AND FACILITIES,NHS PROPERTY SERVICES LTD,35138722,"25,100.94",https://nww.einvoice-prod.sbs.nhs.uk:8179/invoicepdf/af687102-12f6-51dd-9860-a70c294c61e0,EC2V 7NG
Department of Health,NHS Sheffield CCG,31/01/2021,Service Charge,RECHARGES NHS PROPERTY SERVICES LTD,NHS PROPERTY SERVICES LTD,35138722,"8,483.40",,EC2V 7NG
Department of Health,NHS Sheffield CCG,31/01/2021,Service Charge,ESTATES AND FACILITIES,NHS PROPERTY SERVICES LTD,35138725,"-75,302.81",https://nww.einvoice-prod.sbs.nhs.uk:8179/invoicepdf/0f53bf75-562c-5769-9af5-2b052bcc65ea,EC2V 7NG
Department of Health,NHS Sheffield CCG,31/01/2021,Service Charge,RECHARGES NHS PROPERTY SERVICES LTD,NHS PROPERTY SERVICES LTD,35138725,"-25,450.21",,EC2V 7NG
Department of Health,NHS Sheffield CCG,31/01/2021,Service Charge,ESTATES AND FACILITIES,NHS PROPERTY SERVICES LTD,35138727,"56,238.00",https://nww.einvoice-prod.sbs.nhs.uk:8179/invoicepdf/aa8041d3-3896-576e-9631-819b193f4368,EC2V 7NG
Department of Health,NHS Sheffield CCG,31/01/2021,Service Charge,RECHARGES NHS PROPERTY SERVICES LTD,NHS PROPERTY SERVICES LTD,35138727,"18,746.90",,EC2V 7NG
Department of Health,NHS Sheffield CCG,31/01/2021,Rent,ESTATES AND FACILITIES,NHS PROPERTY SERVICES LTD,35138729,"107,487.83",https://nww.einvoice-prod.sbs.nhs.uk:8179/invoicepdf/818c1a43-9708-5e1d-8ae5-9c76ece8bb93,EC2V 7NG
Department of Health,NHS Sheffield CCG,31/01/2021,Rent,RECHARGES NHS PROPERTY SERVICES LTD,NHS PROPERTY SERVICES LTD,35138729,"35,829.28",,EC2V 7NG
Department of Health,NHS Sheffield CCG,31/01/2021,Service Charge,ESTATES AND FACILITIES,NHS PROPERTY SERVICES LTD,35138729,"36,230.25",,EC2V 7NG
Department of Health,NHS Sheffield CCG,31/01/2021,Service Charge,RECHARGES NHS PROPERTY SERVICES LTD,NHS PROPERTY SERVICES LTD,35138729,"12,076.75",,EC2V 7NG
Department of Health,NHS Sheffield CCG,31/01/2021,Seconded-Basic Sal-Staff fm oth org,BEREAVEMENT SERVICE,NHS ROTHERHAM CCG,35458703,"-34,760.00",FEES AND CHARGES - GROSS RECOVERIES IN RESPECT OF EMPLOYEE BENEFITS - SALARIES AND WAGES ¿ 44811094,WF3 1WE
Department of Health,NHS Sheffield CCG,31/01/2021,Seconded-Basic Sal-Staff fm oth org,BEREAVEMENT SERVICE,NHS ROTHERHAM CCG,35475205,"34,760.00",FEES AND CHARGES - GROSS RECOVERIES IN RESPECT OF EMPLOYEE BENEFITS - SALARIES AND WAGES ¿ 44811094,WF3 1WE
Department of Health,NHS Sheffield CCG,31/01/2021,C&M-GMS Cost of Drugs -Prescribing,LOCAL ENHANCED SERVICES,NORFOLK PARK HEALTH CENTRE,35423469,"3,130.69",DRGP,S2 3TA
Department of Health,NHS Sheffield CCG,31/01/2021,C&M-GMS Global Sum,PRC DELEGATED CO-COMMISSIONING,NORFOLK PARK HEALTH CENTRE,35423469,"42,300.43",GSUMG,S2 3TA
Department of Health,NHS Sheffield CCG,31/01/2021,C&M-GMS PCN DES Participation,PRC DELEGATED CO-COMMISSIONING,NORFOLK PARK HEALTH CENTRE,35423469,"1,603.19",PARTIG,S2 3TA
Department of Health,NHS Sheffield CCG,31/01/2021,C&M-GMS Prem Healthcentre Rent,PRC DELEGATED CO-COMMISSIONING,NORFOLK PARK HEALTH CENTRE,35423469,"25,249.98",HEALTH,S2 3TA
Department of Health,NHS Sheffield CCG,31/01/2021,C&M-GMS Prof Fees Prescribing,PRC DELEGATED CO-COMMISSIONING,NORFOLK PARK HEALTH CENTRE,35423469,741.98,DRGPPF,S2 3TA
Department of Health,NHS Sheffield CCG,31/01/2021,C&M-GMS QOF Aspiration,PRC DELEGATED CO-COMMISSIONING,NORFOLK PARK HEALTH CENTRE,35423469,"3,959.66",QUASPG,S2 3TA
Department of Health,NHS Sheffield CCG,31/01/2021,C&M-GMS Cost of Drugs -Prescribing,LOCAL ENHANCED SERVICES,NORWOOD MEDICAL CENTRE SHEFFIELD,35423472,"2,356.06",DRGP,S5 7HD
Department of Health,NHS Sheffield CCG,31/01/2021,C&M-GMS Global Sum,PRC DELEGATED CO-COMMISSIONING,NORWOOD MEDICAL CENTRE SHEFFIELD,35423472,"67,306.08",GSUMG,S5 7HD
Department of Health,NHS Sheffield CCG,31/01/2021,C&M-GMS PCN DES Participation,PRC DELEGATED CO-COMMISSIONING,NORWOOD MEDICAL CENTRE SHEFFIELD,35423472,"2,690.13",PARTIG,S5 7HD
Department of Health,NHS Sheffield CCG,31/01/2021,C&M-GMS PCO Other,PRC DELEGATED CO-COMMISSIONING,NORWOOD MEDICAL CENTRE SHEFFIELD,35423472,513.80,CQCRG,S5 7HD
Department of Health,NHS Sheffield CCG,31/01/2021,C&M-GMS Prem Notional Rent,PRC DELEGATED CO-COMMISSIONING,NORWOOD MEDICAL CENTRE SHEFFIELD,35423472,"5,187.50",NRENT,S5 7HD
Department of Health,NHS Sheffield CCG,31/01/2021,C&M-GMS Prof Fees Prescribing,PRC DELEGATED CO-COMMISSIONING,NORWOOD MEDICAL CENTRE SHEFFIELD,35423472,597.86,DRGPPF,S5 7HD
Department of Health,NHS Sheffield CCG,31/01/2021,C&M-GMS QOF Aspiration,PRC DELEGATED CO-COMMISSIONING,NORWOOD MEDICAL CENTRE SHEFFIELD,35423472,"8,207.51",QUASPG,S5 7HD
Department of Health,NHS Sheffield CCG,31/01/2021,Clinical&Medical-Independent Sector,ACUTE COMMISSIONING,ONEHEALTH GROUP,35311479,"34,413.91",https://nww.einvoice-prod.sbs.nhs.uk:8179/invoicepdf/5608dbea-1dc4-5466-a237-7f88e65f5af2,S11 8UX
Department of Health,NHS Sheffield CCG,31/01/2021,C&M-GMS Cost of Drugs -Dispensing,LOCAL ENHANCED SERVICES,OUGHTIBRIDGE SURGERY,35423475,"35,865.42","DRGD,DRGADV",S35 0FW
Department of Health,NHS Sheffield CCG,31/01/2021,C&M-GMS Global Sum,PRC DELEGATED CO-COMMISSIONING,OUGHTIBRIDGE SURGERY,35423475,"44,780.91",GSUMG,S35 0FW
Department of Health,NHS Sheffield CCG,31/01/2021,C&M-GMS PCN DES Participation,PRC DELEGATED CO-COMMISSIONING,OUGHTIBRIDGE SURGERY,35423475,"1,785.92",PARTIG,S35 0FW
Department of Health,NHS Sheffield CCG,31/01/2021,C&M-GMS Prem Notional Rent,PRC DELEGATED CO-COMMISSIONING,OUGHTIBRIDGE SURGERY,35423475,"3,957.33",NRENT,S35 0FW
Department of Health,NHS Sheffield CCG,31/01/2021,C&M-GMS Prem Water Rates,PRC DELEGATED CO-COMMISSIONING,OUGHTIBRIDGE SURGERY,35423475,129.06,RAMW,S35 0FW
Department of Health,NHS Sheffield CCG,31/01/2021,C&M-GMS Prof Fees Dispensing,PRC DELEGATED CO-COMMISSIONING,OUGHTIBRIDGE SURGERY,35423475,"5,311.83",DRGDPF,S35 0FW
Department of Health,NHS Sheffield CCG,31/01/2021,C&M-GMS PrscrptnChrgsColl&RmttdbyGP,LOCAL ENHANCED SERVICES,OUGHTIBRIDGE SURGERY,35423475,356.85,DRGPR,S35 0FW
Department of Health,NHS Sheffield CCG,31/01/2021,C&M-GMS QOF Aspiration,PRC DELEGATED CO-COMMISSIONING,OUGHTIBRIDGE SURGERY,35423475,"4,282.40",QUASPG,S35 0FW
Department of Health,NHS Sheffield CCG,31/01/2021,C&M-PMS Contract Value,PRC DELEGATED CO-COMMISSIONING,OWLTHORPE MEDICAL CENTRE,35238616,"34,250.90",BABALP,S20 6PD
Department of Health,NHS Sheffield CCG,31/01/2021,C&M-PMS Out of Hours Opt Outs,PRC DELEGATED CO-COMMISSIONING,OWLTHORPE MEDICAL CENTRE,35238616,2.82,APMOOH,S20 6PD
Department of Health,NHS Sheffield CCG,31/01/2021,C&M-PMS PCN DES Participation,PRC DELEGATED CO-COMMISSIONING,OWLTHORPE MEDICAL CENTRE,35238616,"1,267.74",PARTIP,S20 6PD
Department of Health,NHS Sheffield CCG,31/01/2021,C&M-PMS PCO Other,PRC DELEGATED CO-COMMISSIONING,OWLTHORPE MEDICAL CENTRE,35238616,305.40,CQCRP,S20 6PD
Department of Health,NHS Sheffield CCG,31/01/2021,C&M-PMS Prem Actual Rent,PRC DELEGATED CO-COMMISSIONING,OWLTHORPE MEDICAL CENTRE,35238616,"7,539.58",RENT,S20 6PD
Department of Health,NHS Sheffield CCG,31/01/2021,C&M-PMS QOF Aspiration,PRC DELEGATED CO-COMMISSIONING,OWLTHORPE MEDICAL CENTRE,35238616,"3,728.91",QUASPP,S20 6PD
Department of Health,NHS Sheffield CCG,31/01/2021,C&M-PMS Contract Value,PRC DELEGATED CO-COMMISSIONING,PAGE HALL MEDICAL CENTRE,35238618,"59,145.00",BABALP,S4 8GB
Department of Health,NHS Sheffield CCG,31/01/2021,C&M-PMS Funding Differential Review,PRC DELEGATED CO-COMMISSIONING,PAGE HALL MEDICAL CENTRE,35238618,"2,322.74",ZFUNFP,S4 8GB
Department of Health,NHS Sheffield CCG,31/01/2021,C&M-PMS Out of Hours Opt Outs,PRC DELEGATED CO-COMMISSIONING,PAGE HALL MEDICAL CENTRE,35238618,30.02,APMOOH,S4 8GB
Department of Health,NHS Sheffield CCG,31/01/2021,C&M-PMS PCN DES Participation,PRC DELEGATED CO-COMMISSIONING,PAGE HALL MEDICAL CENTRE,35238618,"2,194.23",PARTIP,S4 8GB
Department of Health,NHS Sheffield CCG,31/01/2021,C&M-PMS PCO Other,PRC DELEGATED CO-COMMISSIONING,PAGE HALL MEDICAL CENTRE,35238618,502.90,CQCRP,S4 8GB
Department of Health,NHS Sheffield CCG,31/01/2021,C&M-PMS Prem Notional Rent,PRC DELEGATED CO-COMMISSIONING,PAGE HALL MEDICAL CENTRE,35238618,"4,833.33",NRENT,S4 8GB
Department of Health,NHS Sheffield CCG,31/01/2021,C&M-PMS Prem Rates,PRC DELEGATED CO-COMMISSIONING,PAGE HALL MEDICAL CENTRE,35238618,"1,285.00",RANDRP,S4 8GB
Department of Health,NHS Sheffield CCG,31/01/2021,C&M-PMS QOF Aspiration,PRC DELEGATED CO-COMMISSIONING,PAGE HALL MEDICAL CENTRE,35238618,"3,909.14",QUASPP,S4 8GB
Department of Health,NHS Sheffield CCG,31/01/2021,C&M-PMS Contract Value,PRC DELEGATED CO-COMMISSIONING,PORTER BROOK MEDICAL CENTRE,35238619,"-7,193.35",BABALP,S11 8HN
Department of Health,NHS Sheffield CCG,31/01/2021,C&M-PMS GP Statutory Levy,PRC DELEGATED CO-COMMISSIONING,PORTER BROOK MEDICAL CENTRE,35238619,"-1,009.61",STATL,S11 8HN
Department of Health,NHS Sheffield CCG,31/01/2021,C&M-PMS Out of Hours Opt Outs,PRC DELEGATED CO-COMMISSIONING,PORTER BROOK MEDICAL CENTRE,35238619,"-8,057.86",APMOOH,S11 8HN
Department of Health,NHS Sheffield CCG,31/01/2021,C&M-PMS PCN DES Participation,PRC DELEGATED CO-COMMISSIONING,PORTER BROOK MEDICAL CENTRE,35238619,"-3,182.41",PARTIP,S11 8HN
Department of Health,NHS Sheffield CCG,31/01/2021,C&M-PMS Contract Value,PRC DELEGATED CO-COMMISSIONING,PORTER BROOK MEDICAL CENTRE,35238620,"169,776.61",BABALP,S11 8HN
Department of Health,NHS Sheffield CCG,31/01/2021,C&M-PMS Funding Differential Review,PRC DELEGATED CO-COMMISSIONING,PORTER BROOK MEDICAL CENTRE,35238620,"7,272.54",ZFUNFP,S11 8HN
Department of Health,NHS Sheffield CCG,31/01/2021,C&M-PMS Out of Hours Opt Outs,PRC DELEGATED CO-COMMISSIONING,PORTER BROOK MEDICAL CENTRE,35238620,342.04,APMOOH,S11 8HN
Department of Health,NHS Sheffield CCG,31/01/2021,C&M-PMS PCN DES Participation,PRC DELEGATED CO-COMMISSIONING,PORTER BROOK MEDICAL CENTRE,35238620,"6,370.24",PARTIP,S11 8HN
Department of Health,NHS Sheffield CCG,31/01/2021,C&M-PMS Prem Actual Rent,PRC DELEGATED CO-COMMISSIONING,PORTER BROOK MEDICAL CENTRE,35238620,"1,666.67",RENT,S11 8HN
Department of Health,NHS Sheffield CCG,31/01/2021,C&M-PMS Prem Notional Rent,PRC DELEGATED CO-COMMISSIONING,PORTER BROOK MEDICAL CENTRE,35238620,"9,666.67",NRENT,S11 8HN
Department of Health,NHS Sheffield CCG,31/01/2021,C&M-PMS Prem Rates,PRC DELEGATED CO-COMMISSIONING,PORTER BROOK MEDICAL CENTRE,35238620,"2,658.00",RANDRP,S11 8HN
Department of Health,NHS Sheffield CCG,31/01/2021,C&M-PMS QOF Aspiration,PRC DELEGATED CO-COMMISSIONING,PORTER BROOK MEDICAL CENTRE,35238620,"10,115.59",QUASPP,S11 8HN
Department of Health,NHS Sheffield CCG,31/01/2021,C&M-GMS LES Equitable Funding,LOCAL ENHANCED SERVICES,PORTER BROOK MEDICAL CENTRE,35317104,"26,869.00",EQUITABLEFUNDQ3 202021,S11 8HN
Department of Health,NHS Sheffield CCG,31/01/2021,Clinical&Medical-Commercial Sector,PATIENT TRANSPORT,PREMIER CARE DIRECT LTD,35158891,"112,480.55",https://nww.einvoice-prod.sbs.nhs.uk:8179/invoicepdf/5780b380-8e59-5033-99dc-9050f0502627,DN4 5NU
Department of Health,NHS Sheffield CCG,31/01/2021,C&M-APMS DES Extended Hours Access,GP FORWARD VIEW,PRIMARY CARE SHEFFIELD LTD,35280840,"302,608.33",,S9 4EU
Department of Health,NHS Sheffield CCG,31/01/2021,C&M-GMS LES Basket of Procedures,LOCAL ENHANCED SERVICES,PRIMARY CARE SHEFFIELD LTD,35280857,"53,558.33",,S9 4EU
Department of Health,NHS Sheffield CCG,31/01/2021,C&M-APMS DES Immediate&1st Response,LOCAL ENHANCED SERVICES,PRIMARY CARE SHEFFIELD LTD,35280865,"38,800.00",,S9 4EU
Department of Health,NHS Sheffield CCG,31/01/2021,C&M-GMS C&M-APMS PCN DES Physician Assoc,PRC DELEGATED CO-COMMISSIONING,PRIMARY CARE SHEFFIELD LTD,35311501,"3,873.01",,S9 4EU
Department of Health,NHS Sheffield CCG,31/01/2021,C&M-GMS PCN DES Clin Pharmacist,PRC DELEGATED CO-COMMISSIONING,PRIMARY CARE SHEFFIELD LTD,35311501,"9,709.78",,S9 4EU
Department of Health,NHS Sheffield CCG,31/01/2021,C&M-GMS PCN DES Physiotherapist,PRC DELEGATED CO-COMMISSIONING,PRIMARY CARE SHEFFIELD LTD,35311501,"4,639.17",,S9 4EU
Department of Health,NHS Sheffield CCG,31/01/2021,C&M-GMS PCN DES Soc Prescribing,PRC DELEGATED CO-COMMISSIONING,PRIMARY CARE SHEFFIELD LTD,35311501,"5,672.00",,S9 4EU
Department of Health,NHS Sheffield CCG,31/01/2021,C&M-PCN DES DIETICIANS,PRC DELEGATED CO-COMMISSIONING,PRIMARY CARE SHEFFIELD LTD,35311501,"4,160.08",,S9 4EU
Department of Health,NHS Sheffield CCG,31/01/2021,C&M-PCN DES HEALTH AND WELLBEING COACH,PRC DELEGATED CO-COMMISSIONING,PRIMARY CARE SHEFFIELD LTD,35311501,"1,660.37",,S9 4EU
Department of Health,NHS Sheffield CCG,31/01/2021,C&M-PCN DES PHARMACY TECHNICIANS,PRC DELEGATED CO-COMMISSIONING,PRIMARY CARE SHEFFIELD LTD,35311501,"2,949.08",,S9 4EU
Department of Health,NHS Sheffield CCG,31/01/2021,Clinical&Medical-Independent Sector,MENTAL HEALTH SERVICES - OTHER,PRIMARY CARE SHEFFIELD LTD,35339403,"30,583.50",,S9 4EU
Department of Health,NHS Sheffield CCG,31/01/2021,C&M-GMS PCN DES Clin Pharmacist,PRC DELEGATED CO-COMMISSIONING,PRIMARY CARE SHEFFIELD LTD,35458871,"18,001.92",,S9 4EU
Department of Health,NHS Sheffield CCG,31/01/2021,C&M-GMS PCN DES Physiotherapist,PRC DELEGATED CO-COMMISSIONING,PRIMARY CARE SHEFFIELD LTD,35458871,"7,345.02",,S9 4EU
Department of Health,NHS Sheffield CCG,31/01/2021,C&M-GMS PCN DES Soc Prescribing,PRC DELEGATED CO-COMMISSIONING,PRIMARY CARE SHEFFIELD LTD,35458871,"2,671.88",,S9 4EU
Department of Health,NHS Sheffield CCG,31/01/2021,C&M-OES Childrens Schemes,LOCAL ENHANCED SERVICES,PRIMARY EYECARE SERVICES LTD,35373881,600.00,,EC1R 0DG
Department of Health,NHS Sheffield CCG,31/01/2021,C&M-OES Glaucoma,LOCAL ENHANCED SERVICES,PRIMARY EYECARE SERVICES LTD,35373881,"1,040.00",,EC1R 0DG
Department of Health,NHS Sheffield CCG,31/01/2021,C&M-OES Intra-ocular Ocular Hypertn,LOCAL ENHANCED SERVICES,PRIMARY EYECARE SERVICES LTD,35373881,180.00,,EC1R 0DG
Department of Health,NHS Sheffield CCG,31/01/2021,C&M-OES PEARS,LOCAL ENHANCED SERVICES,PRIMARY EYECARE SERVICES LTD,35373881,"28,785.75",,EC1R 0DG
Department of Health,NHS Sheffield CCG,31/01/2021,C&M-OES Childrens Schemes,LOCAL ENHANCED SERVICES,PRIMARY EYECARE SERVICES LTD,35373882,800.00,,EC1R 0DG
Department of Health,NHS Sheffield CCG,31/01/2021,C&M-OES Glaucoma,LOCAL ENHANCED SERVICES,PRIMARY EYECARE SERVICES LTD,35373882,"1,430.00",,EC1R 0DG
Department of Health,NHS Sheffield CCG,31/01/2021,C&M-OES Intra-ocular Ocular Hypertn,LOCAL ENHANCED SERVICES,PRIMARY EYECARE SERVICES LTD,35373882,320.00,,EC1R 0DG
Department of Health,NHS Sheffield CCG,31/01/2021,C&M-OES PEARS,LOCAL ENHANCED SERVICES,PRIMARY EYECARE SERVICES LTD,35373882,"23,519.00",,EC1R 0DG
Department of Health,NHS Sheffield CCG,31/01/2021,Cont Care-Physical Disab (<65),CHC ADULT FULLY FUNDED,PRIORY GROUP LTD,35259197,"39,674.87",CHC SCHEDULE JANUARY 2021 - Richmond Heights Care Home (The Priory Group),DL2 1TS
Department of Health,NHS Sheffield CCG,31/01/2021,C&M-PMS Contract Value,PRC DELEGATED CO-COMMISSIONING,RICHMOND MEDICAL CENTRE,35238622,"69,638.41",BABALP,S13 8NA
Department of Health,NHS Sheffield CCG,31/01/2021,C&M-PMS PCN DES Participation,PRC DELEGATED CO-COMMISSIONING,RICHMOND MEDICAL CENTRE,35238622,"1,278.48",PARTIP,S13 8NA
Department of Health,NHS Sheffield CCG,31/01/2021,C&M-PMS PCO Other,PRC DELEGATED CO-COMMISSIONING,RICHMOND MEDICAL CENTRE,35238622,566.10,CQCRP,S13 8NA
Department of Health,NHS Sheffield CCG,31/01/2021,C&M-PMS Prem Notional Rent,PRC DELEGATED CO-COMMISSIONING,RICHMOND MEDICAL CENTRE,35238622,"4,731.00",NRENT,S13 8NA
Department of Health,NHS Sheffield CCG,31/01/2021,C&M-PMS Prem Rates,PRC DELEGATED CO-COMMISSIONING,RICHMOND MEDICAL CENTRE,35238622,"1,509.00",RANDRP,S13 8NA
Department of Health,NHS Sheffield CCG,31/01/2021,C&M-PMS QOF Aspiration,PRC DELEGATED CO-COMMISSIONING,RICHMOND MEDICAL CENTRE,35238622,"7,878.95",QUASPP,S13 8NA
Department of Health,NHS Sheffield CCG,31/01/2021,Cont Care-Funded Nursing Care Allow,FUNDED NURSING CARE,ROSEBERRY CARE CENTRES,35245208,"37,395.94",FNC SCHEDULE JANUARY 2021 - Haythorne Place Nursing Home (Roseberry),S5 6AB
Department of Health,NHS Sheffield CCG,31/01/2021,Cont Care-Physical Disab (<65),CHC ADULT FULLY FUNDED,ROSEBERRY CARE CENTRES,35259235,"27,508.36",CHC SCHEDULE JANUARY 2021 - Haythorne Place Nursing Home (Roseberry),S5 6AB
Department of Health,NHS Sheffield CCG,31/01/2021,Hcare Srv Rec Fdtn Trust-Contract Baseline,ACUTE COMMISSIONING,ROTHERHAM NHS FOUNDATION TRUST,35284555,"618,988.29",,S60 2TY
Department of Health,NHS Sheffield CCG,31/01/2021,C&M-APMS OOH Opt Outs,PRC DELEGATED CO-COMMISSIONING,RUSTLINGS ROAD MEDICAL CENTRE,35238626,4.29,APMOOA,S11 7AB
Department of Health,NHS Sheffield CCG,31/01/2021,C&M-PMS Contract Value,PRC DELEGATED CO-COMMISSIONING,RUSTLINGS ROAD MEDICAL CENTRE,35238626,"29,270.29",BABALP,S11 7AB
Department of Health,NHS Sheffield CCG,31/01/2021,C&M-PMS Funding Differential Review,PRC DELEGATED CO-COMMISSIONING,RUSTLINGS ROAD MEDICAL CENTRE,35238626,"1,130.08",ZFUNFP,S11 7AB
Department of Health,NHS Sheffield CCG,31/01/2021,C&M-PMS PCN DES Participation,PRC DELEGATED CO-COMMISSIONING,RUSTLINGS ROAD MEDICAL CENTRE,35238626,"1,072.99",PARTIP,S11 7AB
Department of Health,NHS Sheffield CCG,31/01/2021,C&M-PMS PCO Other,PRC DELEGATED CO-COMMISSIONING,RUSTLINGS ROAD MEDICAL CENTRE,35238626,316.40,CQCRP,S11 7AB
Department of Health,NHS Sheffield CCG,31/01/2021,C&M-PMS Prem Notional Rent,PRC DELEGATED CO-COMMISSIONING,RUSTLINGS ROAD MEDICAL CENTRE,35238626,"1,312.50",NRENT,S11 7AB
Department of Health,NHS Sheffield CCG,31/01/2021,C&M-PMS QOF Aspiration,PRC DELEGATED CO-COMMISSIONING,RUSTLINGS ROAD MEDICAL CENTRE,35238626,"2,857.73",QUASPP,S11 7AB
Department of Health,NHS Sheffield CCG,31/01/2021,Cont Care-Funded Nursing Care Allow,FUNDED NURSING CARE,SCARSDALE GRANGE NURSING HOME,35245198,"25,486.00",FNC SCHEDULE JANUARY 2021 - Scarsdale Grange Nursing Home,S8 9EQ
Department of Health,NHS Sheffield CCG,31/01/2021,C&M-PMS Contract Value,PRC DELEGATED CO-COMMISSIONING,SELBORNE ROAD MEDICAL CENTRE,35238624,"19,674.52",BABALP,S10 5ND
Department of Health,NHS Sheffield CCG,31/01/2021,C&M-PMS Funding Differential Review,PRC DELEGATED CO-COMMISSIONING,SELBORNE ROAD MEDICAL CENTRE,35238624,956.84,ZFUNFP,S10 5ND
Department of Health,NHS Sheffield CCG,31/01/2021,C&M-PMS Out of Hours Opt Outs,PRC DELEGATED CO-COMMISSIONING,SELBORNE ROAD MEDICAL CENTRE,35238624,3.12,APMOOH,S10 5ND
Department of Health,NHS Sheffield CCG,31/01/2021,C&M-PMS PCN DES Participation,PRC DELEGATED CO-COMMISSIONING,SELBORNE ROAD MEDICAL CENTRE,35238624,732.30,PARTIP,S10 5ND
Department of Health,NHS Sheffield CCG,31/01/2021,C&M-PMS PCO Other,PRC DELEGATED CO-COMMISSIONING,SELBORNE ROAD MEDICAL CENTRE,35238624,203.80,CQCRP,S10 5ND
Department of Health,NHS Sheffield CCG,31/01/2021,C&M-PMS Prem Notional Rent,PRC DELEGATED CO-COMMISSIONING,SELBORNE ROAD MEDICAL CENTRE,35238624,"1,735.42",NRENT,S10 5ND
Department of Health,NHS Sheffield CCG,31/01/2021,C&M-PMS Prem Rates,PRC DELEGATED CO-COMMISSIONING,SELBORNE ROAD MEDICAL CENTRE,35238624,611.00,RANDRP,S10 5ND
Department of Health,NHS Sheffield CCG,31/01/2021,C&M-PMS QOF Aspiration,PRC DELEGATED CO-COMMISSIONING,SELBORNE ROAD MEDICAL CENTRE,35238624,"1,877.44",QUASPP,S10 5ND
Department of Health,NHS Sheffield CCG,31/01/2021,Cont Care-Physical Disab (<65),CHC ADULT FULLY FUNDED,SEVEN HILLS NURSING HOME,35259206,"28,925.54",CHC SCHEDULE JANUARY 2021 - Seven Hills Nursing Home,S11 9AA
Department of Health,NHS Sheffield CCG,31/01/2021,C&M-GMS Cost of Drugs -Prescribing,LOCAL ENHANCED SERVICES,SHARROW LANE MEDICAL CENTRE,35423478,676.54,DRGP,S11 8AN
Department of Health,NHS Sheffield CCG,31/01/2021,C&M-GMS Global Sum,PRC DELEGATED CO-COMMISSIONING,SHARROW LANE MEDICAL CENTRE,35423478,"25,322.98",GSUMG,S11 8AN
Department of Health,NHS Sheffield CCG,31/01/2021,C&M-GMS PCN DES Participation,PRC DELEGATED CO-COMMISSIONING,SHARROW LANE MEDICAL CENTRE,35423478,976.69,PARTIG,S11 8AN
Department of Health,NHS Sheffield CCG,31/01/2021,C&M-GMS PCO Other,PRC DELEGATED CO-COMMISSIONING,SHARROW LANE MEDICAL CENTRE,35423478,274.00,CQCRG,S11 8AN
Department of Health,NHS Sheffield CCG,31/01/2021,C&M-GMS Prem Notional Rent,PRC DELEGATED CO-COMMISSIONING,SHARROW LANE MEDICAL CENTRE,35423478,"2,741.67",NRENT,S11 8AN
Department of Health,NHS Sheffield CCG,31/01/2021,C&M-GMS Prof Fees Prescribing,PRC DELEGATED CO-COMMISSIONING,SHARROW LANE MEDICAL CENTRE,35423478,205.51,DRGPPF,S11 8AN
Department of Health,NHS Sheffield CCG,31/01/2021,C&M-GMS QOF Aspiration,PRC DELEGATED CO-COMMISSIONING,SHARROW LANE MEDICAL CENTRE,35423478,"2,676.86",QUASPG,S11 8AN
Department of Health,NHS Sheffield CCG,31/01/2021,Hcare Srv Rec Fdtn Trust-Contract Baseline,ACUTE CHILDRENS SERVICES,SHEFFIELD CHILDRENS NHS FOUNDATION TRUST,35284552,"6,049,745.62",,S10 2TH
Department of Health,NHS Sheffield CCG,31/01/2021,Other Gen Supplies & Srv,BEREAVEMENT SERVICE,SHEFFIELD CHILDRENS NHS FOUNDATION TRUST,35477428,"34,000.00",https://nww.einvoice-prod.sbs.nhs.uk:8179/invoicepdf/6451fadd-c3b6-5c34-8ff8-e1d850d86ac7,S10 2TH
Department of Health,NHS Sheffield CCG,31/01/2021,Services From Local Authorities,MENTAL HEALTH SERVICES - COLLABORATIVE COMMISSIONING,SHEFFIELD CITY COUNCIL,35159032,"38,020.60",,S1 1UJ
Department of Health,NHS Sheffield CCG,31/01/2021,Services From Local Authorities,CONTINUING HEALTHCARE ASSESSMENT & SUPPORT,SHEFFIELD CITY COUNCIL,35159058,"32,400.00",,S1 2HH
Department of Health,NHS Sheffield CCG,31/01/2021,Cont Care-Physical Disab (65+),CHC ADULT FULLY FUNDED,SHEFFIELD CITY COUNCIL,35245175,"994,204.62",RMT SCHEDULE JANUARY 2021,S1 1UJ
Department of Health,NHS Sheffield CCG,31/01/2021,Cont Care- Prior Year Payments,CHC ADULT FULLY FUNDED,SHEFFIELD CITY COUNCIL,35245176,"47,504.66",RMT SCHEDULE JANUARY 2021PY,S1 1UJ
Department of Health,NHS Sheffield CCG,31/01/2021,Cont Care- Children,CHC CHILDREN,SHEFFIELD CITY COUNCIL,35245177,"98,167.81",CHILDRENS SCHEDULE JANUARY 2021,S1 1UJ
Department of Health,NHS Sheffield CCG,31/01/2021,Soc Care-Support Prim Care,COMMUNITY SERVICES,SHEFFIELD CITY COUNCIL,35245451,"4,204,000.00",,S1 1UJ
Department of Health,NHS Sheffield CCG,31/01/2021,Services From Local Authorities,MENTAL HEALTH SERVICES - COLLABORATIVE COMMISSIONING,SHEFFIELD CITY COUNCIL,35386221,"27,233.36",,S1 2HH
Department of Health,NHS Sheffield CCG,31/01/2021,Hcare Srv Rec Fdtn Trust-Contract Baseline,MENTAL HEALTH CONTRACTS,SHEFFIELD HEALTH & SOCIAL CARE NHS FOUNDATION TRUST,35284553,"9,015,348.63",,S10 3TH
Department of Health,NHS Sheffield CCG,31/01/2021,Clinical&Medical-Independent Sector,COMMUNITY SERVICES,SHEFFIELD TEACHING HOSPITALS NHS FOUNDATION TRUST,35280533,"58,531.00",,S5 7AU
Department of Health,NHS Sheffield CCG,31/01/2021,Hcare Srv Rec Fdtn Trust-Contract Baseline,ACUTE COMMISSIONING,SHEFFIELD TEACHING HOSPITALS NHS FOUNDATION TRUST,35284554,"44,712,369.39",,S5 7AU
Department of Health,NHS Sheffield CCG,31/01/2021,Other Gen Supplies & Srv,CLINICAL LEADS,SHEFFIELD TEACHING HOSPITALS NHS FOUNDATION TRUST,35477316,"35,300.00",,S5 7AU
Department of Health,NHS Sheffield CCG,31/01/2021,Other Gen Supplies & Srv,CLINICAL LEADS,SHEFFIELD TEACHING HOSPITALS NHS FOUNDATION TRUST,35477318,"29,200.00",,S5 7AU
Department of Health,NHS Sheffield CCG,31/01/2021,C&M-GMS Cost of Drugs -Prescribing,LOCAL ENHANCED SERVICES,SHIREGREEN MEDICAL CENTRE,35423486,"4,313.37",DRGP,S5 0RG
Department of Health,NHS Sheffield CCG,31/01/2021,C&M-GMS Global Sum,PRC DELEGATED CO-COMMISSIONING,SHIREGREEN MEDICAL CENTRE,35423486,"58,792.95",GSUMG,S5 0RG
Department of Health,NHS Sheffield CCG,31/01/2021,C&M-GMS PCN DES Participation,PRC DELEGATED CO-COMMISSIONING,SHIREGREEN MEDICAL CENTRE,35423486,"2,389.19",PARTIG,S5 0RG
Department of Health,NHS Sheffield CCG,31/01/2021,C&M-GMS PCO Other,PRC DELEGATED CO-COMMISSIONING,SHIREGREEN MEDICAL CENTRE,35423486,496.00,CQCRG,S5 0RG
Department of Health,NHS Sheffield CCG,31/01/2021,C&M-GMS Prem Cost Rent,PRC DELEGATED CO-COMMISSIONING,SHIREGREEN MEDICAL CENTRE,35423486,"1,792.33",COST,S5 0RG
Department of Health,NHS Sheffield CCG,31/01/2021,C&M-GMS Prem Notional Rent,PRC DELEGATED CO-COMMISSIONING,SHIREGREEN MEDICAL CENTRE,35423486,"5,375.00",NRENT,S5 0RG
Department of Health,NHS Sheffield CCG,31/01/2021,C&M-GMS Prof Fees Prescribing,PRC DELEGATED CO-COMMISSIONING,SHIREGREEN MEDICAL CENTRE,35423486,"1,128.98",DRGPPF,S5 0RG
Department of Health,NHS Sheffield CCG,31/01/2021,C&M-GMS QOF Aspiration,PRC DELEGATED CO-COMMISSIONING,SHIREGREEN MEDICAL CENTRE,35423486,"6,876.28",QUASPG,S5 0RG
Department of Health,NHS Sheffield CCG,31/01/2021,C&M-PMS Contract Value,PRC DELEGATED CO-COMMISSIONING,SLOAN MEDICAL CENTRE,35238627,"98,227.52",BABALP,S8 0YH
Department of Health,NHS Sheffield CCG,31/01/2021,C&M-PMS PCN DES Participation,PRC DELEGATED CO-COMMISSIONING,SLOAN MEDICAL CENTRE,35238627,"3,662.66",PARTIP,S8 0YH
Department of Health,NHS Sheffield CCG,31/01/2021,C&M-PMS PCO Locum Adop/Pat/Mat,PRC DELEGATED CO-COMMISSIONING,SLOAN MEDICAL CENTRE,35238627,"3,844.17",SICKC,S8 0YH
Department of Health,NHS Sheffield CCG,31/01/2021,C&M-PMS PCO Locum Sickness,PRC DELEGATED CO-COMMISSIONING,SLOAN MEDICAL CENTRE,35238627,"1,688.94",SICKS,S8 0YH
Department of Health,NHS Sheffield CCG,31/01/2021,C&M-PMS PCO Other,PRC DELEGATED CO-COMMISSIONING,SLOAN MEDICAL CENTRE,35238627,"8,127.00",CQCRP,S8 0YH
Department of Health,NHS Sheffield CCG,31/01/2021,C&M-PMS Prem Actual Rent,PRC DELEGATED CO-COMMISSIONING,SLOAN MEDICAL CENTRE,35238627,"19,033.32",RENT,S8 0YH
Department of Health,NHS Sheffield CCG,31/01/2021,C&M-PMS Prem Notional Rent,PRC DELEGATED CO-COMMISSIONING,SLOAN MEDICAL CENTRE,35238627,747.50,NRENT,S8 0YH
Department of Health,NHS Sheffield CCG,31/01/2021,C&M-PMS Prem Rates,PRC DELEGATED CO-COMMISSIONING,SLOAN MEDICAL CENTRE,35238627,"3,478.00",RANDRP,S8 0YH
Department of Health,NHS Sheffield CCG,31/01/2021,C&M-PMS QOF Aspiration,PRC DELEGATED CO-COMMISSIONING,SLOAN MEDICAL CENTRE,35238627,"9,977.55",QUASPP,S8 0YH
Department of Health,NHS Sheffield CCG,31/01/2021,C&M-PMS GP Statutory Levy,PRC DELEGATED CO-COMMISSIONING,SLOAN MEDICAL CENTRE,35258312,-472.26,STATL,S8 0YH
Department of Health,NHS Sheffield CCG,31/01/2021,C&M-PMS Out of Hours Opt Outs,PRC DELEGATED CO-COMMISSIONING,SLOAN MEDICAL CENTRE,35258312,"-4,680.47",APMOOH,S8 0YH
Department of Health,NHS Sheffield CCG,31/01/2021,C&M-PMS PCN DES Participation,PRC DELEGATED CO-COMMISSIONING,SLOAN MEDICAL CENTRE,35258312,"-1,829.77",PARTIP,S8 0YH
Department of Health,NHS Sheffield CCG,31/01/2021,C&M-PMS Prem Actual Rent,PRC DELEGATED CO-COMMISSIONING,SLOAN MEDICAL CENTRE,35258312,"-15,970.83",RENT,S8 0YH
Department of Health,NHS Sheffield CCG,31/01/2021,C&M-PMS Contract Value,PRC DELEGATED CO-COMMISSIONING,SOTHALL MEDICAL CENTRE,35238629,"72,846.08",BABALP,S20 1HQ
Department of Health,NHS Sheffield CCG,31/01/2021,C&M-PMS PCN DES Participation,PRC DELEGATED CO-COMMISSIONING,SOTHALL MEDICAL CENTRE,35238629,"2,710.63",PARTIP,S20 1HQ
Department of Health,NHS Sheffield CCG,31/01/2021,C&M-PMS PCO Other,PRC DELEGATED CO-COMMISSIONING,SOTHALL MEDICAL CENTRE,35238629,"6,253.00",CQCRP,S20 1HQ
Department of Health,NHS Sheffield CCG,31/01/2021,C&M-PMS Prem Notional Rent,PRC DELEGATED CO-COMMISSIONING,SOTHALL MEDICAL CENTRE,35238629,"5,116.67",NRENT,S20 1HQ
Department of Health,NHS Sheffield CCG,31/01/2021,C&M-PMS Prem Rates,PRC DELEGATED CO-COMMISSIONING,SOTHALL MEDICAL CENTRE,35238629,"1,435.00",RANDRP,S20 1HQ
Department of Health,NHS Sheffield CCG,31/01/2021,C&M-PMS Prem Water Rates,PRC DELEGATED CO-COMMISSIONING,SOTHALL MEDICAL CENTRE,35238629,113.61,RAMWP,S20 1HQ
Department of Health,NHS Sheffield CCG,31/01/2021,C&M-PMS QOF Aspiration,PRC DELEGATED CO-COMMISSIONING,SOTHALL MEDICAL CENTRE,35238629,"8,491.33",QUASPP,S20 1HQ
Department of Health,NHS Sheffield CCG,31/01/2021,Clinical&Medical-Voluntary Sector,COLLABORATIVE COMMISSIONING,SOUTH YORKSHIRE HOUSING ASSOCIATION LTD,35193680,"90,000.00",,S1 4EB
Department of Health,NHS Sheffield CCG,31/01/2021,Clinical&Medical-Voluntary Sector,COLLABORATIVE COMMISSIONING,SOUTH YORKSHIRE HOUSING ASSOCIATION LTD,35193681,"139,149.72",,S1 4EB
Department of Health,NHS Sheffield CCG,31/01/2021,Cont Care- Adult 100% Fully Funded,CHC ADULT FULLY FUNDED,SOUTH YORKSHIRE HOUSING ASSOCIATION LTD,35243446,"25,500.00",Birch Avenue - Additional Staff January 21,S1 4HF
Department of Health,NHS Sheffield CCG,31/01/2021,Cont Care- Adult 100% Fully Funded,CHC ADULT FULLY FUNDED,SOUTH YORKSHIRE HOUSING ASSOCIATION LTD,35243447,"46,763.59",Birch Avenue - January 21,S1 4HF
Department of Health,NHS Sheffield CCG,31/01/2021,Clinical&Medical-Independent Sector,MENTAL HEALTH CONTRACTS,SOUTH YORKSHIRE HOUSING ASSOCIATION LTD,35243449,"34,434.83",Lister Avenue - January 21,S1 4HF
Department of Health,NHS Sheffield CCG,31/01/2021,Cont Care-Physical Disab (<65),CHC ADULT FULLY FUNDED,SOUTH YORKSHIRE HOUSING ASSOCIATION LTD,35259157,"62,861.12",CHC SCHEDULE JANUARY 2021 - Birch Avenue Nursing Home (SYHA),S35 1RQ
Department of Health,NHS Sheffield CCG,31/01/2021,Clinical&Medical-Voluntary Sector,COLLABORATIVE COMMISSIONING,SOUTH YORKSHIRE HOUSING ASSOCIATION LTD,35280540,"139,149.72",,S1 4EB
Department of Health,NHS Sheffield CCG,31/01/2021,Clinical&Medical-Independent Sector,MENTAL HEALTH CONTRACTS,SOUTH YORKSHIRE HOUSING ASSOCIATION LTD,35469209,"137,734.57",,S1 4EB
Department of Health,NHS Sheffield CCG,31/01/2021,Clinical&Medical-Independent Sector,MENTAL HEALTH CONTRACTS,SOUTH YORKSHIRE HOUSING ASSOCIATION LTD,35469223,"-137,734.57",,S1 4EB
Department of Health,NHS Sheffield CCG,31/01/2021,C&M-PMS Contract Value,PRC DELEGATED CO-COMMISSIONING,SOUTHEY GREEN MEDICAL CENTRE,35238631,"25,584.63",BABALP,S5 7QB
Department of Health,NHS Sheffield CCG,31/01/2021,C&M-PMS Funding Differential Review,PRC DELEGATED CO-COMMISSIONING,SOUTHEY GREEN MEDICAL CENTRE,35238631,"1,224.56",ZFUNFP,S5 7QB
Department of Health,NHS Sheffield CCG,31/01/2021,C&M-PMS Out of Hours Opt Outs,PRC DELEGATED CO-COMMISSIONING,SOUTHEY GREEN MEDICAL CENTRE,35238631,1.73,APMOOH,S5 7QB
Department of Health,NHS Sheffield CCG,31/01/2021,C&M-PMS PCN DES Participation,PRC DELEGATED CO-COMMISSIONING,SOUTHEY GREEN MEDICAL CENTRE,35238631,475.95,PARTIP,S5 7QB
Department of Health,NHS Sheffield CCG,31/01/2021,C&M-PMS Prem Notional Rent,PRC DELEGATED CO-COMMISSIONING,SOUTHEY GREEN MEDICAL CENTRE,35238631,"3,362.50",NRENT,S5 7QB
Department of Health,NHS Sheffield CCG,31/01/2021,C&M-PMS Prem Rates,PRC DELEGATED CO-COMMISSIONING,SOUTHEY GREEN MEDICAL CENTRE,35238631,"1,198.00",RANDRP,S5 7QB
Department of Health,NHS Sheffield CCG,31/01/2021,C&M-PMS QOF Aspiration,PRC DELEGATED CO-COMMISSIONING,SOUTHEY GREEN MEDICAL CENTRE,35238631,"2,637.54",QUASPP,S5 7QB
Department of Health,NHS Sheffield CCG,31/01/2021,Clinical&Medical-Independent Sector,ACUTE COMMISSIONING,SPAMEDICA LTD,35458743,"96,210.84",https://nww.einvoice-prod.sbs.nhs.uk:8179/invoicepdf/0d340bb3-612d-5a09-8c2a-1cf670b53a12,M15 4SQ
Department of Health,NHS Sheffield CCG,31/01/2021,Clinical&Medical-Voluntary Sector,HOSPICES,ST LUKES HOSPICE,35446073,"60,848.92",,S11 9NE
Department of Health,NHS Sheffield CCG,31/01/2021,Other Gen Supplies & Srv,CLINICAL LEADS,ST LUKES HOSPICE,35475267,"35,000.00",,S11 9NE
Department of Health,NHS Sheffield CCG,31/01/2021,C&M-GMS Cost of Drugs -Prescribing,LOCAL ENHANCED SERVICES,STANNINGTON MEDICAL CENTRE,35423490,"11,530.57",DRGP,S6 6BX
Department of Health,NHS Sheffield CCG,31/01/2021,C&M-GMS Global Sum,PRC DELEGATED CO-COMMISSIONING,STANNINGTON MEDICAL CENTRE,35423490,"26,694.60",GSUMG,S6 6BX
Department of Health,NHS Sheffield CCG,31/01/2021,C&M-GMS PCO Other,PRC DELEGATED CO-COMMISSIONING,STANNINGTON MEDICAL CENTRE,35423490,243.40,CQCRG,S6 6BX
Department of Health,NHS Sheffield CCG,31/01/2021,C&M-GMS Prem Notional Rent,PRC DELEGATED CO-COMMISSIONING,STANNINGTON MEDICAL CENTRE,35423490,"2,575.00",NRENT,S6 6BX
Department of Health,NHS Sheffield CCG,31/01/2021,C&M-GMS Prem Rates,PRC DELEGATED CO-COMMISSIONING,STANNINGTON MEDICAL CENTRE,35423490,500.00,RANDR,S6 6BX
Department of Health,NHS Sheffield CCG,31/01/2021,C&M-GMS Prem Water Rates,PRC DELEGATED CO-COMMISSIONING,STANNINGTON MEDICAL CENTRE,35423490,122.89,RAMW,S6 6BX
Department of Health,NHS Sheffield CCG,31/01/2021,C&M-GMS Prof Fees Prescribing,PRC DELEGATED CO-COMMISSIONING,STANNINGTON MEDICAL CENTRE,35423490,"2,820.26",DRGPPF,S6 6BX
Department of Health,NHS Sheffield CCG,31/01/2021,C&M-GMS QOF Aspiration,PRC DELEGATED CO-COMMISSIONING,STANNINGTON MEDICAL CENTRE,35423490,"3,017.79",QUASPG,S6 6BX
Department of Health,NHS Sheffield CCG,31/01/2021,C&M-GMS Global Sum,PRC DELEGATED CO-COMMISSIONING,STONECROFT MEDICAL CENTRE,35423488,"34,436.50",GSUMG,S12 2LJ
Department of Health,NHS Sheffield CCG,31/01/2021,C&M-GMS PCN DES Participation,PRC DELEGATED CO-COMMISSIONING,STONECROFT MEDICAL CENTRE,35423488,"1,337.22",PARTIG,S12 2LJ
Department of Health,NHS Sheffield CCG,31/01/2021,C&M-GMS PCO Other,PRC DELEGATED CO-COMMISSIONING,STONECROFT MEDICAL CENTRE,35423488,286.80,CQCRG,S12 2LJ
Department of Health,NHS Sheffield CCG,31/01/2021,C&M-GMS Prem Notional Rent,PRC DELEGATED CO-COMMISSIONING,STONECROFT MEDICAL CENTRE,35423488,"2,808.33",NRENT,S12 2LJ
Department of Health,NHS Sheffield CCG,31/01/2021,C&M-GMS Prem Rates,PRC DELEGATED CO-COMMISSIONING,STONECROFT MEDICAL CENTRE,35423488,"1,235.00",RANDR,S12 2LJ
Department of Health,NHS Sheffield CCG,31/01/2021,C&M-GMS Prem Water Rates,PRC DELEGATED CO-COMMISSIONING,STONECROFT MEDICAL CENTRE,35423488,107.44,RAMW,S12 2LJ
Department of Health,NHS Sheffield CCG,31/01/2021,C&M-GMS QOF Aspiration,PRC DELEGATED CO-COMMISSIONING,STONECROFT MEDICAL CENTRE,35423488,"4,246.35",QUASPG,S12 2LJ
Department of Health,NHS Sheffield CCG,31/01/2021,Clinical&Medical-Independent Sector,MENTAL HEALTH CONTRACTS,SUSASH GB LTD T/A EAGLE HOUSE,35243448,"30,091.75",Eagle House - January 21,S11 8NP
Department of Health,NHS Sheffield CCG,31/01/2021,Cont Care-Physical Disab (<65),CHC ADULT FULLY FUNDED,SUSASH GB LTD T/A EAGLE HOUSE,35259268,"31,992.63",CHC SCHEDULE JANUARY 2021 - Eagle House Nursing Home (Susash GB Ltd),S11 8NP
Department of Health,NHS Sheffield CCG,31/01/2021,C&M-GMS Cost of Drugs -Prescribing,LOCAL ENHANCED SERVICES,TOTLEY RISE MEDICAL CENTRE,35423492,"1,709.91",DRGP,S17 4DQ
Department of Health,NHS Sheffield CCG,31/01/2021,C&M-GMS Global Sum,PRC DELEGATED CO-COMMISSIONING,TOTLEY RISE MEDICAL CENTRE,35423492,"27,383.57",GSUMG,S17 4DQ
Department of Health,NHS Sheffield CCG,31/01/2021,C&M-GMS PCN DES Participation,PRC DELEGATED CO-COMMISSIONING,TOTLEY RISE MEDICAL CENTRE,35423492,"1,063.31",PARTIG,S17 4DQ
Department of Health,NHS Sheffield CCG,31/01/2021,C&M-GMS Prem Notional Rent,PRC DELEGATED CO-COMMISSIONING,TOTLEY RISE MEDICAL CENTRE,35423492,"1,604.17",NRENT,S17 4DQ
Department of Health,NHS Sheffield CCG,31/01/2021,C&M-GMS Prem Rates,PRC DELEGATED CO-COMMISSIONING,TOTLEY RISE MEDICAL CENTRE,35423492,636.23,RANDR,S17 4DQ
Department of Health,NHS Sheffield CCG,31/01/2021,C&M-GMS Prof Fees Prescribing,PRC DELEGATED CO-COMMISSIONING,TOTLEY RISE MEDICAL CENTRE,35423492,338.97,DRGPPF,S17 4DQ
Department of Health,NHS Sheffield CCG,31/01/2021,C&M-GMS QOF Aspiration,PRC DELEGATED CO-COMMISSIONING,TOTLEY RISE MEDICAL CENTRE,35423492,"2,402.35",QUASPG,S17 4DQ
Department of Health,NHS Sheffield CCG,31/01/2021,C&M-GMS Cost of Drugs -Prescribing,LOCAL ENHANCED SERVICES,TRAMWAYS MEDICAL CENTRE,35423494,"4,224.82",DRGP,S6 4JQ
Department of Health,NHS Sheffield CCG,31/01/2021,C&M-GMS Global Sum,PRC DELEGATED CO-COMMISSIONING,TRAMWAYS MEDICAL CENTRE,35423494,"63,409.68",GSUMG,S6 4JQ
Department of Health,NHS Sheffield CCG,31/01/2021,C&M-GMS PCN DES Participation,PRC DELEGATED CO-COMMISSIONING,TRAMWAYS MEDICAL CENTRE,35423494,"2,516.92",PARTIG,S6 4JQ
Department of Health,NHS Sheffield CCG,31/01/2021,C&M-GMS PCO Other,PRC DELEGATED CO-COMMISSIONING,TRAMWAYS MEDICAL CENTRE,35423494,530.40,CQCRG,S6 4JQ
Department of Health,NHS Sheffield CCG,31/01/2021,C&M-GMS Prem Cost Rent,PRC DELEGATED CO-COMMISSIONING,TRAMWAYS MEDICAL CENTRE,35423494,"4,012.75",COST,S6 4JQ
Department of Health,NHS Sheffield CCG,31/01/2021,C&M-GMS Prem Rates,PRC DELEGATED CO-COMMISSIONING,TRAMWAYS MEDICAL CENTRE,35423494,"1,310.00",RANDR,S6 4JQ
Department of Health,NHS Sheffield CCG,31/01/2021,C&M-GMS Prof Fees Prescribing,PRC DELEGATED CO-COMMISSIONING,TRAMWAYS MEDICAL CENTRE,35423494,768.68,DRGPPF,S6 4JQ
Department of Health,NHS Sheffield CCG,31/01/2021,C&M-GMS QOF Aspiration,PRC DELEGATED CO-COMMISSIONING,TRAMWAYS MEDICAL CENTRE,35423494,"5,986.86",QUASPG,S6 4JQ
Department of Health,NHS Sheffield CCG,31/01/2021,C&M-PMS Contract Value,PRC DELEGATED CO-COMMISSIONING,UNIVERSITY HEALTH SERVICE,35238634,"-14,869.61",BABALP,S3 7QP
Department of Health,NHS Sheffield CCG,31/01/2021,C&M-PMS DES Extended Hours Access,PRC DELEGATED CO-COMMISSIONING,UNIVERSITY HEALTH SERVICE,35238634,"-4,929.28",EXTHDP,S3 7QP
Department of Health,NHS Sheffield CCG,31/01/2021,C&M-PMS GP Statutory Levy,PRC DELEGATED CO-COMMISSIONING,UNIVERSITY HEALTH SERVICE,35238634,"-1,422.26",STATL,S3 7QP
Department of Health,NHS Sheffield CCG,31/01/2021,C&M-PMS Out of Hours Opt Outs,PRC DELEGATED CO-COMMISSIONING,UNIVERSITY HEALTH SERVICE,35238634,"-9,840.12",APMOOH,S3 7QP
Department of Health,NHS Sheffield CCG,31/01/2021,C&M-PMS PCN DES Clinical Director,PRC DELEGATED CO-COMMISSIONING,UNIVERSITY HEALTH SERVICE,35238634,"-2,454.44",CLINDP,S3 7QP
Department of Health,NHS Sheffield CCG,31/01/2021,C&M-PMS PCN DES PCN support,LOCAL ENHANCED SERVICES,UNIVERSITY HEALTH SERVICE,35238634,"-5,099.25",PCNSUP,S3 7QP
Department of Health,NHS Sheffield CCG,31/01/2021,C&M-PMS PCN DES Participation,PRC DELEGATED CO-COMMISSIONING,UNIVERSITY HEALTH SERVICE,35238634,"-3,871.12",PARTIP,S3 7QP
Department of Health,NHS Sheffield CCG,31/01/2021,C&M-PMS Contract Value,PRC DELEGATED CO-COMMISSIONING,UNIVERSITY HEALTH SERVICE,35238635,"206,365.07",BABALP,S3 7QP
Department of Health,NHS Sheffield CCG,31/01/2021,C&M-PMS DES Extended Hours Access,PRC DELEGATED CO-COMMISSIONING,UNIVERSITY HEALTH SERVICE,35238635,"9,865.48",EXTHDP,S3 7QP
Department of Health,NHS Sheffield CCG,31/01/2021,C&M-PMS Out of Hours Opt Outs,PRC DELEGATED CO-COMMISSIONING,UNIVERSITY HEALTH SERVICE,35238635,712.50,APMOOH,S3 7QP
Department of Health,NHS Sheffield CCG,31/01/2021,C&M-PMS PCN DES Clinical Director,PRC DELEGATED CO-COMMISSIONING,UNIVERSITY HEALTH SERVICE,35238635,"4,902.14",CLINDP,S3 7QP
Department of Health,NHS Sheffield CCG,31/01/2021,C&M-PMS PCN DES PCN support,LOCAL ENHANCED SERVICES,UNIVERSITY HEALTH SERVICE,35238635,"10,198.63",PCNSUP,S3 7QP
Department of Health,NHS Sheffield CCG,31/01/2021,C&M-PMS PCN DES Participation,PRC DELEGATED CO-COMMISSIONING,UNIVERSITY HEALTH SERVICE,35238635,"7,748.83",PARTIP,S3 7QP
Department of Health,NHS Sheffield CCG,31/01/2021,C&M-PMS PCO Locum Sickness,PRC DELEGATED CO-COMMISSIONING,UNIVERSITY HEALTH SERVICE,35238635,"20,958.42",SICKS,S3 7QP
Department of Health,NHS Sheffield CCG,31/01/2021,C&M-PMS Prem Notional Rent,PRC DELEGATED CO-COMMISSIONING,UNIVERSITY HEALTH SERVICE,35238635,"15,833.33",NRENT,S3 7QP
Department of Health,NHS Sheffield CCG,31/01/2021,C&M-PMS QOF Aspiration,PRC DELEGATED CO-COMMISSIONING,UNIVERSITY HEALTH SERVICE,35238635,"7,529.34",QUASPP,S3 7QP
Department of Health,NHS Sheffield CCG,31/01/2021,C&M-PMS LES Primary Care Offer,LOCAL ENHANCED SERVICES,UNIVERSITY HEALTH SERVICE,35317025,"25,529.00",QUALITY CONTRACT Q3 202021,S3 7QP
Department of Health,NHS Sheffield CCG,31/01/2021,C&M-GMS LES Equitable Funding,LOCAL ENHANCED SERVICES,UNIVERSITY HEALTH SERVICE,35317142,"31,911.00",EQUITABLEFUNDQ3 202021,S3 7QP
Department of Health,NHS Sheffield CCG,31/01/2021,C&M-GMS Cost of Drugs -Prescribing,LOCAL ENHANCED SERVICES,UPPERTHORPE MEDICAL CENTRE,35423497,"6,660.61",DRGP,S6 3FT
Department of Health,NHS Sheffield CCG,31/01/2021,C&M-GMS Global Sum,PRC DELEGATED CO-COMMISSIONING,UPPERTHORPE MEDICAL CENTRE,35423497,"89,651.98",GSUMG,S6 3FT
Department of Health,NHS Sheffield CCG,31/01/2021,C&M-GMS PCN DES Participation,PRC DELEGATED CO-COMMISSIONING,UPPERTHORPE MEDICAL CENTRE,35423497,"3,488.03",PARTIG,S6 3FT
Department of Health,NHS Sheffield CCG,31/01/2021,C&M-GMS Prem Notional Rent,PRC DELEGATED CO-COMMISSIONING,UPPERTHORPE MEDICAL CENTRE,35423497,"2,547.83",NRENT,S6 3FT
Department of Health,NHS Sheffield CCG,31/01/2021,C&M-GMS Prem Rates,PRC DELEGATED CO-COMMISSIONING,UPPERTHORPE MEDICAL CENTRE,35423497,"3,049.10",RANDR,S6 3FT
Department of Health,NHS Sheffield CCG,31/01/2021,C&M-GMS Prem Water Rates,PRC DELEGATED CO-COMMISSIONING,UPPERTHORPE MEDICAL CENTRE,35423497,222.87,RAMW,S6 3FT
Department of Health,NHS Sheffield CCG,31/01/2021,C&M-GMS Prof Fees Prescribing,PRC DELEGATED CO-COMMISSIONING,UPPERTHORPE MEDICAL CENTRE,35423497,"1,102.30",DRGPPF,S6 3FT
Department of Health,NHS Sheffield CCG,31/01/2021,C&M-GMS QOF Aspiration,PRC DELEGATED CO-COMMISSIONING,UPPERTHORPE MEDICAL CENTRE,35423497,"9,300.36",QUASPG,S6 3FT
Department of Health,NHS Sheffield CCG,31/01/2021,C&M-PMS Contract Value,PRC DELEGATED CO-COMMISSIONING,UPWELL STREET SURGERY,35238637,"37,024.50",BABALP,S4 8AN
Department of Health,NHS Sheffield CCG,31/01/2021,C&M-PMS Funding Differential Review,PRC DELEGATED CO-COMMISSIONING,UPWELL STREET SURGERY,35238637,"1,822.38",ZFUNFP,S4 8AN
Department of Health,NHS Sheffield CCG,31/01/2021,C&M-PMS Out of Hours Opt Outs,PRC DELEGATED CO-COMMISSIONING,UPWELL STREET SURGERY,35238637,38.70,APMOOH,S4 8AN
Department of Health,NHS Sheffield CCG,31/01/2021,C&M-PMS PCN DES Participation,PRC DELEGATED CO-COMMISSIONING,UPWELL STREET SURGERY,35238637,"1,375.79",PARTIP,S4 8AN
Department of Health,NHS Sheffield CCG,31/01/2021,C&M-PMS PCO Locum Sickness,PRC DELEGATED CO-COMMISSIONING,UPWELL STREET SURGERY,35238637,"2,286.12",SICKS,S4 8AN
Department of Health,NHS Sheffield CCG,31/01/2021,C&M-PMS Prem Notional Rent,PRC DELEGATED CO-COMMISSIONING,UPWELL STREET SURGERY,35238637,"8,137.50",NRENT,S4 8AN
Department of Health,NHS Sheffield CCG,31/01/2021,C&M-PMS Prem Rates,PRC DELEGATED CO-COMMISSIONING,UPWELL STREET SURGERY,35238637,"1,362.00",RANDRP,S4 8AN
Department of Health,NHS Sheffield CCG,31/01/2021,C&M-PMS QOF Aspiration,PRC DELEGATED CO-COMMISSIONING,UPWELL STREET SURGERY,35238637,"3,919.87",QUASPP,S4 8AN
Department of Health,NHS Sheffield CCG,31/01/2021,C&M-PMS DES Extended Hours Access,PRC DELEGATED CO-COMMISSIONING,VALLEY MEDICAL CENTRE,35238638,"-2,507.53",EXTHDP,S36 1BX
Department of Health,NHS Sheffield CCG,31/01/2021,C&M-PMS GP Statutory Levy,PRC DELEGATED CO-COMMISSIONING,VALLEY MEDICAL CENTRE,35238638,-336.63,STATL,S36 1BX
Department of Health,NHS Sheffield CCG,31/01/2021,C&M-PMS Out of Hours Opt Outs,PRC DELEGATED CO-COMMISSIONING,VALLEY MEDICAL CENTRE,35238638,"-3,840.72",APMOOH,S36 1BX
Department of Health,NHS Sheffield CCG,31/01/2021,C&M-PMS PCN DES Clinical Director,PRC DELEGATED CO-COMMISSIONING,VALLEY MEDICAL CENTRE,35238638,"-1,248.58",CLINDP,S36 1BX
Department of Health,NHS Sheffield CCG,31/01/2021,C&M-PMS PCN DES PCN support,LOCAL ENHANCED SERVICES,VALLEY MEDICAL CENTRE,35238638,"-2,594.00",PCNSUP,S36 1BX
Department of Health,NHS Sheffield CCG,31/01/2021,C&M-PMS PCN DES Participation,PRC DELEGATED CO-COMMISSIONING,VALLEY MEDICAL CENTRE,35238638,"-1,502.00",PARTIP,S36 1BX
Department of Health,NHS Sheffield CCG,31/01/2021,C&M-PMS Contract Value,PRC DELEGATED CO-COMMISSIONING,VALLEY MEDICAL CENTRE,35238639,"80,661.27",BABALP,S36 1BX
Department of Health,NHS Sheffield CCG,31/01/2021,C&M-PMS DES Extended Hours Access,PRC DELEGATED CO-COMMISSIONING,VALLEY MEDICAL CENTRE,35238639,"5,018.52",EXTHDP,S36 1BX
Department of Health,NHS Sheffield CCG,31/01/2021,C&M-PMS PCN DES Clinical Director,PRC DELEGATED CO-COMMISSIONING,VALLEY MEDICAL CENTRE,35238639,"2,493.70",CLINDP,S36 1BX
Department of Health,NHS Sheffield CCG,31/01/2021,C&M-PMS PCN DES PCN support,LOCAL ENHANCED SERVICES,VALLEY MEDICAL CENTRE,35238639,"5,188.00",PCNSUP,S36 1BX
Department of Health,NHS Sheffield CCG,31/01/2021,C&M-PMS PCN DES Participation,PRC DELEGATED CO-COMMISSIONING,VALLEY MEDICAL CENTRE,35238639,"3,006.56",PARTIP,S36 1BX
Department of Health,NHS Sheffield CCG,31/01/2021,C&M-PMS PCO Locum Adop/Pat/Mat,PRC DELEGATED CO-COMMISSIONING,VALLEY MEDICAL CENTRE,35238639,"11,738.00",SICKC,S36 1BX
Department of Health,NHS Sheffield CCG,31/01/2021,C&M-PMS Prem Rates,PRC DELEGATED CO-COMMISSIONING,VALLEY MEDICAL CENTRE,35238639,"1,784.00",RANDRP,S36 1BX
Department of Health,NHS Sheffield CCG,31/01/2021,C&M-PMS QOF Aspiration,PRC DELEGATED CO-COMMISSIONING,VALLEY MEDICAL CENTRE,35238639,"9,062.68",QUASPP,S36 1BX
Department of Health,NHS Sheffield CCG,31/01/2021,Cont Care-Physical Disab (<65),CHC ADULT FULLY FUNDED,VALORUM CARE LTD,35259272,"49,699.33",CHC SCHEDULE JANUARY 2021 - Valorum Care Limited (Mickley Hall),LS19 7RW
Department of Health,NHS Sheffield CCG,31/01/2021,C&M-GMS Cost of Drugs -Prescribing,LOCAL ENHANCED SERVICES,WALKLEY HOUSE MEDICAL CENTRE,35423503,"15,724.03",DRGP,S6 3TN
Department of Health,NHS Sheffield CCG,31/01/2021,C&M-GMS Global Sum,PRC DELEGATED CO-COMMISSIONING,WALKLEY HOUSE MEDICAL CENTRE,35423503,"90,216.55",GSUMG,S6 3TN
Department of Health,NHS Sheffield CCG,31/01/2021,C&M-GMS PCN DES Participation,PRC DELEGATED CO-COMMISSIONING,WALKLEY HOUSE MEDICAL CENTRE,35423503,"3,522.09",PARTIG,S6 3TN
Department of Health,NHS Sheffield CCG,31/01/2021,C&M-GMS PCO Other,PRC DELEGATED CO-COMMISSIONING,WALKLEY HOUSE MEDICAL CENTRE,35423503,"7,427.00",CQCRG,S6 3TN
Department of Health,NHS Sheffield CCG,31/01/2021,C&M-GMS Prem Notional Rent,PRC DELEGATED CO-COMMISSIONING,WALKLEY HOUSE MEDICAL CENTRE,35423503,"5,635.50",NRENT,S6 3TN
Department of Health,NHS Sheffield CCG,31/01/2021,C&M-GMS Prem Rates,PRC DELEGATED CO-COMMISSIONING,WALKLEY HOUSE MEDICAL CENTRE,35423503,"2,517.00",RANDR,S6 3TN
Department of Health,NHS Sheffield CCG,31/01/2021,C&M-GMS Prof Fees Prescribing,PRC DELEGATED CO-COMMISSIONING,WALKLEY HOUSE MEDICAL CENTRE,35423503,"3,886.80",DRGPPF,S6 3TN
Department of Health,NHS Sheffield CCG,31/01/2021,C&M-GMS QOF Aspiration,PRC DELEGATED CO-COMMISSIONING,WALKLEY HOUSE MEDICAL CENTRE,35423503,"8,644.85",QUASPG,S6 3TN
Department of Health,NHS Sheffield CCG,31/01/2021,C&M-GMS Global Sum,PRC DELEGATED CO-COMMISSIONING,WHITE HOUSE SURGERY SHEFFIELD,35423501,"55,450.86",GSUMG,S2 1SL
Department of Health,NHS Sheffield CCG,31/01/2021,C&M-GMS PCN DES Participation,PRC DELEGATED CO-COMMISSIONING,WHITE HOUSE SURGERY SHEFFIELD,35423501,"2,112.47",PARTIG,S2 1SL
Department of Health,NHS Sheffield CCG,31/01/2021,C&M-GMS Prem Notional Rent,PRC DELEGATED CO-COMMISSIONING,WHITE HOUSE SURGERY SHEFFIELD,35423501,"9,412.50",NRENT,S2 1SL
Department of Health,NHS Sheffield CCG,31/01/2021,C&M-GMS Prem Rates,PRC DELEGATED CO-COMMISSIONING,WHITE HOUSE SURGERY SHEFFIELD,35423501,"2,483.00",RANDR,S2 1SL
Department of Health,NHS Sheffield CCG,31/01/2021,C&M-GMS Prem Water Rates,PRC DELEGATED CO-COMMISSIONING,WHITE HOUSE SURGERY SHEFFIELD,35423501,223.93,RAMW,S2 1SL
Department of Health,NHS Sheffield CCG,31/01/2021,C&M-GMS QOF Aspiration,PRC DELEGATED CO-COMMISSIONING,WHITE HOUSE SURGERY SHEFFIELD,35423501,"6,054.80",QUASPG,S2 1SL
Department of Health,NHS Sheffield CCG,31/01/2021,Cont Care-Physical Disab (<65),CHC ADULT FULLY FUNDED,WILLOWBECK HEALTH CARE LTD,35259222,"165,687.06",CHC SCHEDULE JANUARY 2021 - Willowbeck Health Care Ltd (Exemplar HC),S4 8AR
Department of Health,NHS Sheffield CCG,31/01/2021,C&M-PMS Contract Value,PRC DELEGATED CO-COMMISSIONING,WINCOBANK MEDICAL CENTRE,35238643,"63,698.76",BABALP,S9 1DJ
Department of Health,NHS Sheffield CCG,31/01/2021,C&M-PMS Out of Hours Opt Outs,PRC DELEGATED CO-COMMISSIONING,WINCOBANK MEDICAL CENTRE,35238643,12.67,APMOOH,S9 1DJ
Department of Health,NHS Sheffield CCG,31/01/2021,C&M-PMS PCN DES Participation,PRC DELEGATED CO-COMMISSIONING,WINCOBANK MEDICAL CENTRE,35238643,"2,384.65",PARTIP,S9 1DJ
Department of Health,NHS Sheffield CCG,31/01/2021,C&M-PMS Prem Healthcentre Rent,PRC DELEGATED CO-COMMISSIONING,WINCOBANK MEDICAL CENTRE,35238643,"46,340.33",HEALTH,S9 1DJ
Department of Health,NHS Sheffield CCG,31/01/2021,C&M-PMS QOF Aspiration,PRC DELEGATED CO-COMMISSIONING,WINCOBANK MEDICAL CENTRE,35238643,"5,972.45",QUASPP,S9 1DJ
Department of Health,NHS Sheffield CCG,31/01/2021,C&M-PMS Contract Value,PRC DELEGATED CO-COMMISSIONING,WOODHOUSE HEALTH CENTRE,35238641,"102,206.58",BABALP,S13 7LY
Department of Health,NHS Sheffield CCG,31/01/2021,C&M-PMS Funding Differential Review,PRC DELEGATED CO-COMMISSIONING,WOODHOUSE HEALTH CENTRE,35238641,"4,191.82",ZFUNFP,S13 7LY
Department of Health,NHS Sheffield CCG,31/01/2021,C&M-PMS Out of Hours Opt Outs,PRC DELEGATED CO-COMMISSIONING,WOODHOUSE HEALTH CENTRE,35238641,80.74,APMOOH,S13 7LY
Department of Health,NHS Sheffield CCG,31/01/2021,C&M-PMS PCN DES Participation,PRC DELEGATED CO-COMMISSIONING,WOODHOUSE HEALTH CENTRE,35238641,"1,913.91",PARTIP,S13 7LY
Department of Health,NHS Sheffield CCG,31/01/2021,C&M-PMS PCO Other,PRC DELEGATED CO-COMMISSIONING,WOODHOUSE HEALTH CENTRE,35238641,751.30,CQCRP,S13 7LY
Department of Health,NHS Sheffield CCG,31/01/2021,C&M-PMS Prem Notional Rent,PRC DELEGATED CO-COMMISSIONING,WOODHOUSE HEALTH CENTRE,35238641,"6,338.58",NRENT,S13 7LY
Department of Health,NHS Sheffield CCG,31/01/2021,C&M-PMS Prem Rates,PRC DELEGATED CO-COMMISSIONING,WOODHOUSE HEALTH CENTRE,35238641,286.27,RANDRP,S13 7LY
Department of Health,NHS Sheffield CCG,31/01/2021,C&M-PMS QOF Aspiration,PRC DELEGATED CO-COMMISSIONING,WOODHOUSE HEALTH CENTRE,35238641,"13,397.77",QUASPP,S13 7LY
Department of Health,NHS Sheffield CCG,31/01/2021,C&M-PMS Contract Value,PRC DELEGATED CO-COMMISSIONING,WOODSEATS MEDICAL CENTRE,35241993,"81,247.47",BABALP,S8 0SH
Department of Health,NHS Sheffield CCG,31/01/2021,C&M-PMS Out of Hours Opt Outs,PRC DELEGATED CO-COMMISSIONING,WOODSEATS MEDICAL CENTRE,35241993,13.08,APMOOH,S8 0SH
Department of Health,NHS Sheffield CCG,31/01/2021,C&M-PMS PCN DES Participation,PRC DELEGATED CO-COMMISSIONING,WOODSEATS MEDICAL CENTRE,35241993,"3,012.16",PARTIP,S8 0SH
Department of Health,NHS Sheffield CCG,31/01/2021,C&M-PMS PCO Locum Sickness,PRC DELEGATED CO-COMMISSIONING,WOODSEATS MEDICAL CENTRE,35241993,"3,275.76",SICKS,S8 0SH
Department of Health,NHS Sheffield CCG,31/01/2021,C&M-PMS PCO Other,PRC DELEGATED CO-COMMISSIONING,WOODSEATS MEDICAL CENTRE,35241993,645.70,CQCRP,S8 0SH
Department of Health,NHS Sheffield CCG,31/01/2021,C&M-PMS Prem Notional Rent,PRC DELEGATED CO-COMMISSIONING,WOODSEATS MEDICAL CENTRE,35241993,"11,666.67",NRENT,S8 0SH
Department of Health,NHS Sheffield CCG,31/01/2021,C&M-PMS Prem Water Rates,PRC DELEGATED CO-COMMISSIONING,WOODSEATS MEDICAL CENTRE,35241993,389.76,RAMWP,S8 0SH
Department of Health,NHS Sheffield CCG,31/01/2021,C&M-PMS QOF Aspiration,PRC DELEGATED CO-COMMISSIONING,WOODSEATS MEDICAL CENTRE,35241993,"8,588.98",QUASPP,S8 0SH
Department of Health,NHS Sheffield CCG,31/01/2021,Hcare Srv Rec NHS Trust-Contract Baseline,AMBULANCE SERVICES,YORKSHIRE AMBULANCE SERVICE NHS TRUST,35284551,"2,406,606.96",,WF2 0XQ
